Workbook

Sheet Дитячі (hidden)
A1: Кількість бібліотек в звіті: | B1: Кількість бібліотек в звіті: | C1: Кількість бібліотек в звіті: | D1: Кількість бібліотек в звіті: | E1: Кількість бібліотек в звіті: | F1: Кількість бібліотек в звіті: | G1: 2
A3: І.МАТЕРІАЛЬНО-ТЕХНІЧНА БАЗА | B3: І.МАТЕРІАЛЬНО-ТЕХНІЧНА БАЗА | C3: І.МАТЕРІАЛЬНО-ТЕХНІЧНА БАЗА | D3: І.МАТЕРІАЛЬНО-ТЕХНІЧНА БАЗА | E3: І.МАТЕРІАЛЬНО-ТЕХНІЧНА БАЗА | F3: І.МАТЕРІАЛЬНО-ТЕХНІЧНА БАЗА | G3: І.МАТЕРІАЛЬНО-ТЕХНІЧНА БАЗА | H3: І.МАТЕРІАЛЬНО-ТЕХНІЧНА БАЗА | I3: І.МАТЕРІАЛЬНО-ТЕХНІЧНА БАЗА | J3: І.МАТЕРІАЛЬНО-ТЕХНІЧНА БАЗА | K3: І.МАТЕРІАЛЬНО-ТЕХНІЧНА БАЗА | L3: І.МАТЕРІАЛЬНО-ТЕХНІЧНА БАЗА | M3: І.МАТЕРІАЛЬНО-ТЕХНІЧНА БАЗА | N3: І.МАТЕРІАЛЬНО-ТЕХНІЧНА БАЗА | O3: І.МАТЕРІАЛЬНО-ТЕХНІЧНА БАЗА | P3: І.МАТЕРІАЛЬНО-ТЕХНІЧНА БАЗА | Q3: І.МАТЕРІАЛЬНО-ТЕХНІЧНА БАЗА | R3: І.МАТЕРІАЛЬНО-ТЕХНІЧНА БАЗА | S3: І.МАТЕРІАЛЬНО-ТЕХНІЧНА БАЗА | T3: І.МАТЕРІАЛЬНО-ТЕХНІЧНА БАЗА | U3: І.МАТЕРІАЛЬНО-ТЕХНІЧНА БАЗА | V3: І.МАТЕРІАЛЬНО-ТЕХНІЧНА БАЗА | W3: І.МАТЕРІАЛЬНО-ТЕХНІЧНА БАЗА | X3: І.МАТЕРІАЛЬНО-ТЕХНІЧНА БАЗА | Y3: І.МАТЕРІАЛЬНО-ТЕХНІЧНА БАЗА | Z3: І.МАТЕРІАЛЬНО-ТЕХНІЧНА БАЗА | AA3: І.МАТЕРІАЛЬНО-ТЕХНІЧНА БАЗА | AB3: І.МАТЕРІАЛЬНО-ТЕХНІЧНА БАЗА | AC3: І.МАТЕРІАЛЬНО-ТЕХНІЧНА БАЗА | AD3: І.МАТЕРІАЛЬНО-ТЕХНІЧНА БАЗА
A4: Загальна площа приміщень (кв. м) | B4: у т. ч. | C4: у т. ч. | D4: Кількість бібліотечних пунктів | E4: Кількість бібліотечних приміщень | F4: Характеристика приміщень бібліотеки (од.) | G4: Характеристика приміщень бібліотеки (од.) | H4: Характеристика приміщень бібліотеки (од.) | I4: Характеристика приміщень бібліотеки (од.) | J4: Характеристика приміщень бібліотеки (од.) | K4: Характеристика приміщень бібліотеки (од.) | L4: Характеристика приміщень бібліотеки (од.) | M4: Характеристика приміщень бібліотеки (од.) | N4: Характеристика приміщень бібліотеки (од.) | O4: Характеристика приміщень бібліотеки (од.) | P4: Характеристика приміщень бібліотеки (од.) | Q4: Кількість посадочних місць для користувачів | R4: Засоби зв'язку | S4: Засоби зв'язку | T4: Засоби зв'язку | U4: Кількість технічних засобів (од.) | V4: Кількість технічних засобів (од.) | W4: Кількість технічних засобів (од.) | X4: Кількість технічних засобів (од.) | Y4: Кількість технічних засобів (од.) | Z4: Кількість технічних засобів (од.) | AA4: Кількість технічних засобів (од.) | AB4: Кількість технічних засобів (од.) | AC4: Кількість технічних засобів (од.) | AD4: Кількість технічних засобів (од.)
A5: Загальна площа приміщень (кв. м) | B5: у т. ч. | C5: у т. ч. | D5: Кількість бібліотечних пунктів | E5: Кількість бібліотечних приміщень | F5: Майнова | G5: Майнова | H5: Технічна | I5: Технічна | J5: Технічна | K5: Технічна | L5: Опалення | M5: Опалення | N5: Освітлення | O5: Освітлення | P5: Приміщення обладнане пандусом, підйомником | Q5: Кількість посадочних місць для користувачів | R5: Засоби зв'язку | S5: Засоби зв'язку | T5: Засоби зв'язку | U5: Кількість технічних засобів (од.) | V5: Кількість технічних засобів (од.) | W5: Кількість технічних засобів (од.) | X5: Кількість технічних засобів (од.) | Y5: Кількість технічних засобів (од.) | Z5: Кількість технічних засобів (од.) | AA5: Кількість технічних засобів (од.) | AB5: Кількість технічних засобів (од.) | AC5: Кількість технічних засобів (од.) | AD5: Кількість технічних засобів (од.)
A6: Загальна площа приміщень (кв. м) | B6: для зберігання фондів | C6: для обслуговування користувачів | D6: Кількість бібліотечних пунктів | E6: Кількість бібліотечних приміщень | F6: на праві оперативного управління | G6: орендоване | H6: потребує капітального ремонту | I6: аварійне | J6: не потребує ремонту | K6: потребує поточного ремонту | L6: Опалювані приміщення | M6: Неопалювані приміщення | N6: Приміщення з освітленням | O6: Приміщення без освітлення | P6: Приміщення обладнане пандусом, підйомником | Q6: Кількість посадочних місць для користувачів | R6: Кількість номерів стаціонарного телефонного зв'язку | S6: Кількість факсів | T6: Кількість адрес електронної пошти | U6: комп'ютерів | V6: у т. ч. комп'ютерів для користувачів | W6: комп'ютерів з доступом до мережі Інтернет | X6: у т. ч. комп'ютерів для користувачів з доступом до мережі Інтернет | Y6: у т. ч. комп'ютерів з тифлообладнанням та спеціалізованим програмним устаткуванням для сліпих та слабозорих | Z6: копіювально- розмножувальної техніки | AA6: мультимедійного обладнання | AB6: у т. ч. електронних пристроїв для читання | AC6: транспортних засобів | AD6: у т. ч. спеціалізованих транспортних засобів бібліобус
A7: 1 | B7: 2 | C7: 3 | D7: 4 | E7: 5 | F7: 6 | G7: 7 | H7: 8 | I7: 9 | J7: 10 | K7: 11 | L7: 12 | M7: 13 | N7: 14 | O7: 15 | P7: 16 | Q7: 17 | R7: 18 | S7: 19 | T7: 20 | U7: 21 | V7: 22 | W7: 23 | X7: 24 | Y7: 25 | Z7: 26 | AA7: 27 | AB7: 28 | AC7: 29 | AD7: 30
A8: 20 | B8: 22 | C8: 24 | D8: 26 | E8: 28 | F8: 30 | G8: 32 | H8: 34 | I8: 36 | J8: 38 | K8: 40 | L8: 42 | M8: 44 | N8: 46 | O8: 48 | P8: 50 | Q8: 52 | R8: 54 | S8: 56 | T8: 58 | U8: 60 | V8: 62 | W8: 64 | X8: 66 | Y8: 68 | Z8: 70 | AA8: 72 | AB8: 74 | AC8: 76 | AD8: 78
A11: ІІ. КОРИСТУВАЧІ, ВІДВІДУВАННЯ, ЗВЕРНЕННЯ ДО БІБЛІОТЕКИ | B11: ІІ. КОРИСТУВАЧІ, ВІДВІДУВАННЯ, ЗВЕРНЕННЯ ДО БІБЛІОТЕКИ | C11: ІІ. КОРИСТУВАЧІ, ВІДВІДУВАННЯ, ЗВЕРНЕННЯ ДО БІБЛІОТЕКИ | D11: ІІ. КОРИСТУВАЧІ, ВІДВІДУВАННЯ, ЗВЕРНЕННЯ ДО БІБЛІОТЕКИ | E11: ІІ. КОРИСТУВАЧІ, ВІДВІДУВАННЯ, ЗВЕРНЕННЯ ДО БІБЛІОТЕКИ | F11: ІІ. КОРИСТУВАЧІ, ВІДВІДУВАННЯ, ЗВЕРНЕННЯ ДО БІБЛІОТЕКИ | G11: ІІ. КОРИСТУВАЧІ, ВІДВІДУВАННЯ, ЗВЕРНЕННЯ ДО БІБЛІОТЕКИ | H11: ІІ. КОРИСТУВАЧІ, ВІДВІДУВАННЯ, ЗВЕРНЕННЯ ДО БІБЛІОТЕКИ | I11: ІІ. КОРИСТУВАЧІ, ВІДВІДУВАННЯ, ЗВЕРНЕННЯ ДО БІБЛІОТЕКИ | J11: ІІ. КОРИСТУВАЧІ, ВІДВІДУВАННЯ, ЗВЕРНЕННЯ ДО БІБЛІОТЕКИ | K11: ІІ. КОРИСТУВАЧІ, ВІДВІДУВАННЯ, ЗВЕРНЕННЯ ДО БІБЛІОТЕКИ | L11: ІІ. КОРИСТУВАЧІ, ВІДВІДУВАННЯ, ЗВЕРНЕННЯ ДО БІБЛІОТЕКИ | M11: ІІ. КОРИСТУВАЧІ, ВІДВІДУВАННЯ, ЗВЕРНЕННЯ ДО БІБЛІОТЕКИ | N11: ІІ. КОРИСТУВАЧІ, ВІДВІДУВАННЯ, ЗВЕРНЕННЯ ДО БІБЛІОТЕКИ | O11: ІІ. КОРИСТУВАЧІ, ВІДВІДУВАННЯ, ЗВЕРНЕННЯ ДО БІБЛІОТЕКИ | P11: ІІ. КОРИСТУВАЧІ, ВІДВІДУВАННЯ, ЗВЕРНЕННЯ ДО БІБЛІОТЕКИ | Q11: ІІ. КОРИСТУВАЧІ, ВІДВІДУВАННЯ, ЗВЕРНЕННЯ ДО БІБЛІОТЕКИ | R11: ІІ. КОРИСТУВАЧІ, ВІДВІДУВАННЯ, ЗВЕРНЕННЯ ДО БІБЛІОТЕКИ | S11: ІІ. КОРИСТУВАЧІ, ВІДВІДУВАННЯ, ЗВЕРНЕННЯ ДО БІБЛІОТЕКИ | T11: ІІ. КОРИСТУВАЧІ, ВІДВІДУВАННЯ, ЗВЕРНЕННЯ ДО БІБЛІОТЕКИ | U11: ІІ. КОРИСТУВАЧІ, ВІДВІДУВАННЯ, ЗВЕРНЕННЯ ДО БІБЛІОТЕКИ | V11: ІІ. КОРИСТУВАЧІ, ВІДВІДУВАННЯ, ЗВЕРНЕННЯ ДО БІБЛІОТЕКИ | W11: ІІ. КОРИСТУВАЧІ, ВІДВІДУВАННЯ, ЗВЕРНЕННЯ ДО БІБЛІОТЕКИ | X11: ІІ. КОРИСТУВАЧІ, ВІДВІДУВАННЯ, ЗВЕРНЕННЯ ДО БІБЛІОТЕКИ | Y11: ІІ. КОРИСТУВАЧІ, ВІДВІДУВАННЯ, ЗВЕРНЕННЯ ДО БІБЛІОТЕКИ | Z11: ІІ. КОРИСТУВАЧІ, ВІДВІДУВАННЯ, ЗВЕРНЕННЯ ДО БІБЛІОТЕКИ | AA11: ІІ. КОРИСТУВАЧІ, ВІДВІДУВАННЯ, ЗВЕРНЕННЯ ДО БІБЛІОТЕКИ | AB11: ІІ. КОРИСТУВАЧІ, ВІДВІДУВАННЯ, ЗВЕРНЕННЯ ДО БІБЛІОТЕКИ | AC11: ІІ. КОРИСТУВАЧІ, ВІДВІДУВАННЯ, ЗВЕРНЕННЯ ДО БІБЛІОТЕКИ | AD11: ІІ. КОРИСТУВАЧІ, ВІДВІДУВАННЯ, ЗВЕРНЕННЯ ДО БІБЛІОТЕКИ
A12: Населення зони обслуговування | B12: Кількість користувачів протягом року (усього) | C12: У т. ч. обслужених через нестаціонарні форми обслуговування | D12: Кількість зареєстрованих користувачів, згідно з ЄРК | E12: Кількість зареєстрованих користувачів за віком | F12: Кількість зареєстрованих користувачів за віком | G12: Кількість зареєстрованих користувачів за віком | H12: Кількість зареєстрованих користувачів за віком | I12: Кількість зареєстрованих користувачів за віком | J12: Кількість зареєстрованих користувачів за віком | K12: Кількість відвідувань бібліотеки | L12: Кількість відвідувань масових заходів, організованих бібліотекою | M12: Кількість заходів для користувачів в межах бібліотеки | N12: Кількість заходів для користувачів за межами бібліотеки | O12: Кількість учасників заходів в межах бібліотеки | P12: Кількість учасників заходів за межами бібліотеки | Q12: Загальна кількість навчань з ІТ для відвідувачів | R12: Загальна кількість осіб, які пройшли навчання з ІТ у бібліотеках | S12: Кількість осіб, які скористалися доступом до інтренету у бібліотеці | T12: Бібліотека працює годин на тиждень | U12: Бібліотека працює годин на тиждень | V12: Бібліотека працює годин на тиждень | W12: Бібліотека працює годин на тиждень | X12: Бібліотека працює годин на тиждень | Y12: Група за оплатою праці керівних працівників бібліотек та централізованих бібліотечних систем | Z12: Група за оплатою праці керівних працівників бібліотек та централізованих бібліотечних систем | AA12: Група за оплатою праці керівних працівників бібліотек та централізованих бібліотечних систем | AB12: Група за оплатою праці керівних працівників бібліотек та централізованих бібліотечних систем | AC12: Група за оплатою праці керівних працівників бібліотек та централізованих бібліотечних систем | AD12: Група за оплатою праці керівних працівників бібліотек та централізованих бібліотечних систем
A13: Населення зони обслуговування | B13: Кількість користувачів протягом року (усього) | C13: У т. ч. обслужених через нестаціонарні форми обслуговування | D13: Кількість зареєстрованих користувачів, згідно з ЄРК | E13: до 7 років | F13: від 7 до 15 років | G13: від 15 до 18 років | H13: від 18 до 22 років | I13: від 22 до 60 років | J13: від 60 років | K13: Кількість відвідувань бібліотеки | L13: Кількість відвідувань масових заходів, організованих бібліотекою | M13: Кількість заходів для користувачів в межах бібліотеки | N13: Кількість заходів для користувачів за межами бібліотеки | O13: Кількість учасників заходів в межах бібліотеки | P13: Кількість учасників заходів за межами бібліотеки | Q13: Загальна кількість навчань з ІТ для відвідувачів | R13: Загальна кількість осіб, які пройшли навчання з ІТ у бібліотеках | S13: Кількість осіб, які скористалися доступом до інтренету у бібліотеці | T13: до 10 | U13: від 11 до 20 | V13: від 21 до 30 | W13: від 31 до 40 | X13: більше 40 | Y13: національна | Z13: 1 група | AA13: 2 група | AB13: 3 група | AC13: 4 група | AD13: поза групою
A14: 1 | B14: 2 | C14: 3 | D14: 4 | E14: 5 | F14: 6 | G14: 7 | H14: 8 | I14: 9 | J14: 10 | K14: 11 | L14: 12 | M14: 13 | N14: 14 | O14: 15 | P14: 16 | Q14: 17 | R14: 18 | S14: 19 | T14: 20 | U14: 21 | V14: 22 | W14: 23 | X14: 24 | Y14: 25 | Z14: 26 | AA14: 27 | AB14: 28 | AC14: 29 | AD14: 30
A15: 80 | B15: 82 | C15: 84 | D15: 86 | E15: 88 | F15: 90 | G15: 92 | H15: 94 | I15: 96 | J15: 98 | K15: 100 | L15: 102 | M15: 104 | N15: 106 | O15: 108 | P15: 110 | Q15: 112 | R15: 114 | S15: 116 | T15: 118 | U15: 120 | V15: 122 | W15: 124 | X15: 126 | Y15: 128 | Z15: 130 | AA15: 132 | AB15: 134 | AC15: 136 | AD15: 138
A18: ІІІ.ФОНДИ: НАДІЙШЛО, ВИБУЛО | B18: ІІІ.ФОНДИ: НАДІЙШЛО, ВИБУЛО | C18: ІІІ.ФОНДИ: НАДІЙШЛО, ВИБУЛО | D18: ІІІ.ФОНДИ: НАДІЙШЛО, ВИБУЛО | E18: ІІІ.ФОНДИ: НАДІЙШЛО, ВИБУЛО | F18: ІІІ.ФОНДИ: НАДІЙШЛО, ВИБУЛО | G18: ІІІ.ФОНДИ: НАДІЙШЛО, ВИБУЛО | H18: ІІІ.ФОНДИ: НАДІЙШЛО, ВИБУЛО | I18: ІІІ.ФОНДИ: НАДІЙШЛО, ВИБУЛО | J18: ІІІ.ФОНДИ: НАДІЙШЛО, ВИБУЛО | K18: ІІІ.ФОНДИ: НАДІЙШЛО, ВИБУЛО | L18: ІІІ.ФОНДИ: НАДІЙШЛО, ВИБУЛО | M18: ІІІ.ФОНДИ: НАДІЙШЛО, ВИБУЛО | N18: ІІІ.ФОНДИ: НАДІЙШЛО, ВИБУЛО | O18: ІІІ.ФОНДИ: НАДІЙШЛО, ВИБУЛО | P18: ІІІ.ФОНДИ: НАДІЙШЛО, ВИБУЛО | Q18: ІІІ.ФОНДИ: НАДІЙШЛО, ВИБУЛО | R18: ІІІ.ФОНДИ: НАДІЙШЛО, ВИБУЛО | S18: ІІІ.ФОНДИ: НАДІЙШЛО, ВИБУЛО | T18: ІІІ.ФОНДИ: НАДІЙШЛО, ВИБУЛО | U18: ІІІ.ФОНДИ: НАДІЙШЛО, ВИБУЛО | V18: ІІІ.ФОНДИ: НАДІЙШЛО, ВИБУЛО | W18: ІІІ.ФОНДИ: НАДІЙШЛО, ВИБУЛО | X18: ІІІ.ФОНДИ: НАДІЙШЛО, ВИБУЛО | Y18: ІІІ.ФОНДИ: НАДІЙШЛО, ВИБУЛО | Z18: ІІІ.ФОНДИ: НАДІЙШЛО, ВИБУЛО | AA18: ІІІ.ФОНДИ: НАДІЙШЛО, ВИБУЛО | AB18: ІІІ.ФОНДИ: НАДІЙШЛО, ВИБУЛО | AC18: ІІІ.ФОНДИ: НАДІЙШЛО, ВИБУЛО | AD18: ІІІ.ФОНДИ: НАДІЙШЛО, ВИБУЛО | AE18: ІІІ.ФОНДИ: НАДІЙШЛО, ВИБУЛО | AF18: ІІІ.ФОНДИ: НАДІЙШЛО, ВИБУЛО | AG18: ІІІ.ФОНДИ: НАДІЙШЛО, ВИБУЛО | AH18: ІІІ.ФОНДИ: НАДІЙШЛО, ВИБУЛО | AI18: ІІІ.ФОНДИ: НАДІЙШЛО, ВИБУЛО | AJ18: ІІІ.ФОНДИ: НАДІЙШЛО, ВИБУЛО | AK18: ІІІ.ФОНДИ: НАДІЙШЛО, ВИБУЛО
A19: Надійшло документів до бібліотечного фонду | B19: у т. ч. за видами | C19: у т. ч. за видами | D19: у т. ч. за видами | E19: у т. ч. за видами | F19: у т. ч. за видами | G19: у т. ч. за мовами | H19: у т. ч. за мовами | I19: у т. ч. за мовами | J19: у т. ч. за мовами | K19: За джерелами комплектування | L19: За джерелами комплектування | M19: За джерелами комплектування | N19: За джерелами комплектування | O19: Вибуло документів з бібліотечного фонду | P19: у т. ч. за видами | Q19: у т. ч. за видами | R19: у т. ч. за видами | S19: у т. ч. за видами | T19: у т. ч. за видами | U19: у т. ч. за мовами | V19: у т. ч. за мовами | W19: у т. ч. за мовами | X19: у т. ч. за мовами | Y19: Фонд на кінець звітного року | Z19: у т. ч. за видами | AA19: у т. ч. за видами | AB19: у т. ч. за видами | AC19: у т. ч. за видами | AD19: у т. ч. за видами | AE19: у т. ч. за мовами | AF19: у т. ч. за мовами | AG19: у т. ч. за мовами | AH19: у т. ч. за мовами | AI19: Фонд рідкісних та цінних книг | AJ19: Кількість книжкових пам'яток | AK19: Кількість колекцій
A20: Надійшло документів до бібліотечного фонду | B20: книги | C20: періодичні видання | D20: аудіовізуальні матеріали | E20: електронні видання | F20: Інші | G20: українською | H20: російською | I20: мовами нацменшин | J20: іноземними | K20: Документів за Державними, місцевими програмами | L20: Придбано документів | M20: Обов'язковий примірник | N20: Інші джерела | O20: Вибуло документів з бібліотечного фонду | P20: книги | Q20: періодичні видання | R20: аудіовізуальні матеріали | S20: електронні видання | T20: інші | U20: українською | V20: російською | W20: мовами нацменшин | X20: іноземними | Y20: Фонд на кінець звітного року | Z20: книги | AA20: періодичні видання | AB20: аудіовізуальні матеріали | AC20: електронні видання | AD20: інші | AE20: українською | AF20: російською | AG20: мовами нацменшин | AH20: іноземними | AI20: Фонд рідкісних та цінних книг | AJ20: Кількість книжкових пам'яток | AK20: Кількість колекцій
A21: 1 | B21: 2 | C21: 3 | D21: 4 | E21: 5 | F21: 6 | G21: 7 | H21: 8 | I21: 9 | J21: 10 | K21: 11 | L21: 12 | M21: 13 | N21: 14 | O21: 15 | P21: 16 | Q21: 17 | R21: 18 | S21: 19 | T21: 20 | U21: 21 | V21: 22 | W21: 23 | X21: 24 | Y21: 25 | Z21: 26 | AA21: 27 | AB21: 28 | AC21: 29 | AD21: 30 | AE21: 31 | AF21: 32 | AG21: 33 | AH21: 34 | AI21: 35 | AJ21: 36 | AK21: 37
A22: 140 | B22: 142 | C22: 144 | D22: 146 | E22: 148 | F22: 150 | G22: 152 | H22: 154 | I22: 156 | J22: 158 | K22: 160 | L22: 162 | M22: 164 | N22: 166 | O22: 168 | P22: 170 | Q22: 172 | R22: 174 | S22: 176 | T22: 178 | U22: 180 | V22: 182 | W22: 184 | X22: 186 | Y22: 188 | Z22: 190 | AA22: 192 | AB22: 194 | AC22: 196 | AD22: 198 | AE22: 200 | AF22: 202 | AG22: 204 | AH22: 206 | AI22: 208 | AJ22: 210 | AK22: 212
A25: IV. ВИДАЧА | B25: IV. ВИДАЧА | C25: IV. ВИДАЧА | D25: IV. ВИДАЧА | E25: IV. ВИДАЧА | F25: IV. ВИДАЧА | G25: IV. ВИДАЧА | H25: IV. ВИДАЧА | I25: IV. ВИДАЧА | J25: IV. ВИДАЧА | K25: IV. ВИДАЧА | L25: IV. ВИДАЧА | M25: IV. ВИДАЧА | N25: IV. ВИДАЧА | O25: IV. ВИДАЧА | P25: IV. ВИДАЧА | Q25: IV. ВИДАЧА | R25: IV. ВИДАЧА | S25: IV. ВИДАЧА | T25: IV. ВИДАЧА
A26: Видача документів (усього) | B26: у т. ч. за видами видань | C26: у т. ч. за видами видань | D26: у т. ч. за видами видань | E26: у т. ч. за видами видань | F26: у т. ч. за видами видань | G26: у т. ч. за мовами | H26: у т. ч. за мовами | I26: у т. ч. за мовами | J26: у т. ч. за мовами | K26: у т. ч. видано примірників дітям до 15 років | L26: у т. ч. видано примірників дітям до 15 років | M26: у т. ч. видано примірників дітям до 15 років | N26: у т. ч. видано примірників дітям до 15 років | O26: у т. ч. видано примірників дітям до 15 років | P26: у т. ч. видано примірників дітям до 15 років | Q26: у т. ч. видано примірників дітям до 15 років | R26: у т. ч. видано примірників дітям до 15 років | S26: у т. ч. видано примірників дітям до 15 років | T26: у т. ч. видано примірників дітям до 15 років
A27: Видача документів (усього) | B27: книги | C27: періодичні видання | D27: аудіовізуальні матеріали | E27: електронні видання | F27: інші | G27: українською | H27: російською | I27: мовами нацменшин | J27: іноземними | K27: Усього | L27: у т. ч. за видами | M27: у т. ч. за видами | N27: у т. ч. за видами | O27: у т. ч. за видами | P27: у т. ч. за видами | Q27: у т. ч. за мовами | R27: у т. ч. за мовами | S27: у т. ч. за мовами | T27: у т. ч. за мовами
A28: Видача документів (усього) | B28: книги | C28: періодичні видання | D28: аудіовізуальні матеріали | E28: електронні видання | F28: інші | G28: українською | H28: російською | I28: мовами нацменшин | J28: іноземними | K28: Усього | L28: книги | M28: періодичні видання | N28: аудіовізуальні матеріали | O28: електронні видання | P28: інші | Q28: українською | R28: російською | S28: мовами нацменшин | T28: іноземними
A29: 1 | B29: 2 | C29: 3 | D29: 4 | E29: 5 | F29: 6 | G29: 7 | H29: 8 | I29: 9 | J29: 10 | K29: 11 | L29: 12 | M29: 13 | N29: 14 | O29: 15 | P29: 16 | Q29: 17 | R29: 18 | S29: 19 | T29: 20
A30: 214 | B30: 216 | C30: 218 | D30: 220 | E30: 222 | F30: 224 | G30: 226 | H30: 228 | I30: 230 | J30: 232 | K30: 234 | L30: 236 | M30: 238 | N30: 240 | O30: 242 | P30: 244 | Q30: 246 | R30: 248 | S30: 250 | T30: 252
A33: V. EЛЕКТРОННІ РЕСУРСИ | B33: V. EЛЕКТРОННІ РЕСУРСИ | C33: V. EЛЕКТРОННІ РЕСУРСИ | D33: V. EЛЕКТРОННІ РЕСУРСИ | E33: V. EЛЕКТРОННІ РЕСУРСИ | F33: V. EЛЕКТРОННІ РЕСУРСИ | G33: V. EЛЕКТРОННІ РЕСУРСИ | H33: V. EЛЕКТРОННІ РЕСУРСИ | I33: V. EЛЕКТРОННІ РЕСУРСИ | J33: V. EЛЕКТРОННІ РЕСУРСИ | K33: V. EЛЕКТРОННІ РЕСУРСИ
A34: Кількість власних веб-сайтів | B34: Інтернет-адреси власних веб-сайтів | C34: Кількість звернень до власних веб-сайтів | D34: Кількість блогів, сторінок у соціальних мережах | E34: Обсяг ЕК | F34: Кількість власних Баз даних | G34: Обсяг власних БД | H34: Обсяг електронної (цифрової) бібліотеки | I34: з них документів, доступ до яких можливий через мережу Інтернет | J34: Кількість віддалених ліцензованих ресурсів | K34: Кількість звернень до віддалених ліцензованих ресурсів
A35: 1 | B35: 2 | C35: 3 | D35: 4 | E35: 5 | F35: 6 | G35: 7 | H35: 8 | I35: 9 | J35: 10 | K35: 11
A36: 254 | B36: 256 | C36: 258 | D36: 260 | E36: 262 | F36: 264 | G36: 266 | H36: 268 | I36: 270 | J36: 272 | K36: 274
A39: VI. ДОВІДКОВО-ІНФОРМАЦІЙНЕ ОБСЛУГОВУВАННЯ. МІЖБІБЛІОТЕЧНИЙ АБОНЕМЕНТ | B39: VI. ДОВІДКОВО-ІНФОРМАЦІЙНЕ ОБСЛУГОВУВАННЯ. МІЖБІБЛІОТЕЧНИЙ АБОНЕМЕНТ | C39: VI. ДОВІДКОВО-ІНФОРМАЦІЙНЕ ОБСЛУГОВУВАННЯ. МІЖБІБЛІОТЕЧНИЙ АБОНЕМЕНТ | D39: VI. ДОВІДКОВО-ІНФОРМАЦІЙНЕ ОБСЛУГОВУВАННЯ. МІЖБІБЛІОТЕЧНИЙ АБОНЕМЕНТ | E39: VI. ДОВІДКОВО-ІНФОРМАЦІЙНЕ ОБСЛУГОВУВАННЯ. МІЖБІБЛІОТЕЧНИЙ АБОНЕМЕНТ
A40: Кількість виконаних довідок | B40: у т. ч. віртуальних | C40: Кількість абонентів МБА, ММБА | D40: Кількість виданих документів іншим бібліотекам через МБА, ММБА | E40: Кількість отриманих документів з інших бібліотек
A41: 1 | B41: 2 | C41: 3 | D41: 4 | E41: 5
A42: 276 | B42: 278 | C42: 280 | D42: 282 | E42: 284
A45: VII. ПЕРСОНАЛ БІБЛІОТЕКИ | B45: VII. ПЕРСОНАЛ БІБЛІОТЕКИ | C45: VII. ПЕРСОНАЛ БІБЛІОТЕКИ | D45: VII. ПЕРСОНАЛ БІБЛІОТЕКИ | E45: VII. ПЕРСОНАЛ БІБЛІОТЕКИ | F45: VII. ПЕРСОНАЛ БІБЛІОТЕКИ | G45: VII. ПЕРСОНАЛ БІБЛІОТЕКИ | H45: VII. ПЕРСОНАЛ БІБЛІОТЕКИ | I45: VII. ПЕРСОНАЛ БІБЛІОТЕКИ | J45: VII. ПЕРСОНАЛ БІБЛІОТЕКИ | K45: VII. ПЕРСОНАЛ БІБЛІОТЕКИ | L45: VII. ПЕРСОНАЛ БІБЛІОТЕКИ | M45: VII. ПЕРСОНАЛ БІБЛІОТЕКИ | N45: VII. ПЕРСОНАЛ БІБЛІОТЕКИ | O45: VII. ПЕРСОНАЛ БІБЛІОТЕКИ | P45: VII. ПЕРСОНАЛ БІБЛІОТЕКИ | Q45: VII. ПЕРСОНАЛ БІБЛІОТЕКИ | R45: VII. ПЕРСОНАЛ БІБЛІОТЕКИ | S45: VII. ПЕРСОНАЛ БІБЛІОТЕКИ
A46: Загальна кількість працівників | B46: Кількість бібліотечних фахівців | C46: з них мають освіту | D46: з них мають освіту | E46: з них мають освіту | F46: з них мають освіту | G46: Кількість бібліотечних фахівців, які мають стаж бібліотечної роботи | H46: Кількість бібліотечних фахівців, які мають стаж бібліотечної роботи | I46: Кількість бібліотечних фахівців, які мають стаж бібліотечної роботи | J46: Кількість бібліотечних фахівців, які мають стаж бібліотечної роботи | K46: Віковий склад кадрів | L46: Віковий склад кадрів | M46: Віковий склад кадрів | N46: Віковий склад кадрів | O46: Із загальної кількості бібліотечних фахівців працюють | P46: Із загальної кількості бібліотечних фахівців працюють | Q46: Кількість бібліотечних фахівців, які підвищили свою кваліфікацію (протягом року) | R46: Загальна кількість навчань з ІТ для бібліотекарів | S46: Кількість бібліотекарів, для яких організовано навчання у тренінгових центрах
A47: Загальна кількість працівників | B47: Кількість бібліотечних фахівців | C47: повну вищу | D47: у т. ч. спеціальну | E47: базову вищу | F47: у т. ч. спеціальну | G47: до 3 років | H47: понад 3 роки | I47: понад 10 років | J47: понад 20 років | K47: до 30 років | L47: від 30 до 45 років | M47: від 45 до 60 років | N47: від 60 років | O47: повний робочий день | P47: неповний робочий день | Q47: Кількість бібліотечних фахівців, які підвищили свою кваліфікацію (протягом року) | R47: Загальна кількість навчань з ІТ для бібліотекарів | S47: Кількість бібліотекарів, для яких організовано навчання у тренінгових центрах
A48: 1 | B48: 2 | C48: 3 | D48: 4 | E48: 5 | F48: 6 | G48: 7 | H48: 8 | I48: 9 | J48: 10 | K48: 11 | L48: 12 | M48: 13 | N48: 14 | O48: 15 | P48: 16 | Q48: 17 | R48: 18 | S48: 19
A49: 286 | B49: 288 | C49: 290 | D49: 292 | E49: 294 | F49: 296 | G49: 298 | H49: 300 | I49: 302 | J49: 304 | K49: 306 | L49: 308 | M49: 310 | N49: 312 | O49: 314 | P49: 316 | Q49: 318 | R49: 320 | S49: 322
A52: VIII. ФІНАНСУВАННЯ | B52: VIII. ФІНАНСУВАННЯ | C52: VIII. ФІНАНСУВАННЯ | D52: VIII. ФІНАНСУВАННЯ | E52: VIII. ФІНАНСУВАННЯ | F52: VIII. ФІНАНСУВАННЯ | G52: VIII. ФІНАНСУВАННЯ | H52: VIII. ФІНАНСУВАННЯ | I52: VIII. ФІНАНСУВАННЯ | J52: VIII. ФІНАНСУВАННЯ | K52: VIII. ФІНАНСУВАННЯ | L52: VIII. ФІНАНСУВАННЯ | M52: VIII. ФІНАНСУВАННЯ | N52: VIII. ФІНАНСУВАННЯ | O52: VIII. ФІНАНСУВАННЯ | P52: VIII. ФІНАНСУВАННЯ | Q52: VIII. ФІНАНСУВАННЯ | R52: VIII. ФІНАНСУВАННЯ | S52: VIII. ФІНАНСУВАННЯ | T52: VIII. ФІНАНСУВАННЯ
A53: Загальна сума надходжень коштів за рік | B53: Кошти загального фонду | C53: Кошти загального фонду | D53: Кошти загального фонду | E53: Кошти загального фонду | F53: Кошти загального фонду | G53: Кошти загального фонду | H53: Кошти спеціального фонду | I53: Кошти спеціального фонду | J53: Кошти спеціального фонду | K53: Кошти спеціального фонду | L53: Викорис- тання коштів, усього | M53: з них | N53: з них | O53: з них | P53: з них | Q53: з них | R53: з них | S53: з них | T53: Залишок коштів спеціаль ного фонду на кінець року
A54: Загальна сума надходжень коштів за рік | B54: усього | C54: з них | D54: з них | E54: з них | F54: з них | G54: з них | H54: усього | I54: з них | J54: з них | K54: з них | L54: Викорис- тання коштів, усього | M54: на оплату праці | N54: на комплектування фонду | O54: у т. ч. за рахунок коштів загального фонду | P54: на поточний і капітальний ремонти | Q54: у т. ч. за рахунок коштів загального фонду | R54: на придбання основних засобів | S54: у т. ч. за рахунок коштів загального фонду | T54: Залишок коштів спеціаль ного фонду на кінець року
A55: Загальна сума надходжень коштів за рік | B55: усього | C55: на оплату праці | D55: на комплектування | E55: у т. ч. на періодичні видання | F55: на поточний і капітальний ремонти | G55: на придбання основних засобів | H55: усього | I55: надання платних послуг | J55: благодійні, спонсорські внески | K55: інші джерела | L55: Викорис- тання коштів, усього | M55: на оплату праці | N55: на комплектування фонду | O55: у т. ч. за рахунок коштів загального фонду | P55: на поточний і капітальний ремонти | Q55: у т. ч. за рахунок коштів загального фонду | R55: на придбання основних засобів | S55: у т. ч. за рахунок коштів загального фонду | T55: Залишок коштів спеціаль ного фонду на кінець року
A56: 1 | B56: 2 | C56: 3 | D56: 4 | E56: 5 | F56: 6 | G56: 7 | H56: 8 | I56: 9 | J56: 10 | K56: 11 | L56: 12 | M56: 13 | N56: 14 | O56: 15 | P56: 16 | Q56: 17 | R56: 18 | S56: 19 | T56: 20
A57: 324 | B57: 326 | C57: 328 | D57: 330 | E57: 332 | F57: 334 | G57: 336 | H57: 338 | I57: 340 | J57: 342 | K57: 344 | L57: 346 | M57: 348 | N57: 350 | O57: 352 | P57: 354 | Q57: 356 | R57: 358 | S57: 360 | T57: 362

Sheet Юнацькі (hidden)
A1: Кількість бібліотек в звіті: | B1: Кількість бібліотек в звіті: | C1: Кількість бібліотек в звіті: | D1: Кількість бібліотек в звіті: | E1: Кількість бібліотек в звіті: | F1: Кількість бібліотек в звіті: | G1: 1
A3: І.МАТЕРІАЛЬНО-ТЕХНІЧНА БАЗА | B3: І.МАТЕРІАЛЬНО-ТЕХНІЧНА БАЗА | C3: І.МАТЕРІАЛЬНО-ТЕХНІЧНА БАЗА | D3: І.МАТЕРІАЛЬНО-ТЕХНІЧНА БАЗА | E3: І.МАТЕРІАЛЬНО-ТЕХНІЧНА БАЗА | F3: І.МАТЕРІАЛЬНО-ТЕХНІЧНА БАЗА | G3: І.МАТЕРІАЛЬНО-ТЕХНІЧНА БАЗА | H3: І.МАТЕРІАЛЬНО-ТЕХНІЧНА БАЗА | I3: І.МАТЕРІАЛЬНО-ТЕХНІЧНА БАЗА | J3: І.МАТЕРІАЛЬНО-ТЕХНІЧНА БАЗА | K3: І.МАТЕРІАЛЬНО-ТЕХНІЧНА БАЗА | L3: І.МАТЕРІАЛЬНО-ТЕХНІЧНА БАЗА | M3: І.МАТЕРІАЛЬНО-ТЕХНІЧНА БАЗА | N3: І.МАТЕРІАЛЬНО-ТЕХНІЧНА БАЗА | O3: І.МАТЕРІАЛЬНО-ТЕХНІЧНА БАЗА | P3: І.МАТЕРІАЛЬНО-ТЕХНІЧНА БАЗА | Q3: І.МАТЕРІАЛЬНО-ТЕХНІЧНА БАЗА | R3: І.МАТЕРІАЛЬНО-ТЕХНІЧНА БАЗА | S3: І.МАТЕРІАЛЬНО-ТЕХНІЧНА БАЗА | T3: І.МАТЕРІАЛЬНО-ТЕХНІЧНА БАЗА | U3: І.МАТЕРІАЛЬНО-ТЕХНІЧНА БАЗА | V3: І.МАТЕРІАЛЬНО-ТЕХНІЧНА БАЗА | W3: І.МАТЕРІАЛЬНО-ТЕХНІЧНА БАЗА | X3: І.МАТЕРІАЛЬНО-ТЕХНІЧНА БАЗА | Y3: І.МАТЕРІАЛЬНО-ТЕХНІЧНА БАЗА | Z3: І.МАТЕРІАЛЬНО-ТЕХНІЧНА БАЗА | AA3: І.МАТЕРІАЛЬНО-ТЕХНІЧНА БАЗА | AB3: І.МАТЕРІАЛЬНО-ТЕХНІЧНА БАЗА | AC3: І.МАТЕРІАЛЬНО-ТЕХНІЧНА БАЗА | AD3: І.МАТЕРІАЛЬНО-ТЕХНІЧНА БАЗА
A4: Загальна площа приміщень (кв. м) | B4: у т. ч. | C4: у т. ч. | D4: Кількість бібліотечних пунктів | E4: Кількість бібліотечних приміщень | F4: Характеристика приміщень бібліотеки (од.) | G4: Характеристика приміщень бібліотеки (од.) | H4: Характеристика приміщень бібліотеки (од.) | I4: Характеристика приміщень бібліотеки (од.) | J4: Характеристика приміщень бібліотеки (од.) | K4: Характеристика приміщень бібліотеки (од.) | L4: Характеристика приміщень бібліотеки (од.) | M4: Характеристика приміщень бібліотеки (од.) | N4: Характеристика приміщень бібліотеки (од.) | O4: Характеристика приміщень бібліотеки (од.) | P4: Характеристика приміщень бібліотеки (од.) | Q4: Кількість посадочних місць для користувачів | R4: Засоби зв'язку | S4: Засоби зв'язку | T4: Засоби зв'язку | U4: Кількість технічних засобів (од.) | V4: Кількість технічних засобів (од.) | W4: Кількість технічних засобів (од.) | X4: Кількість технічних засобів (од.) | Y4: Кількість технічних засобів (од.) | Z4: Кількість технічних засобів (од.) | AA4: Кількість технічних засобів (од.) | AB4: Кількість технічних засобів (од.) | AC4: Кількість технічних засобів (од.) | AD4: Кількість технічних засобів (од.)
A5: Загальна площа приміщень (кв. м) | B5: у т. ч. | C5: у т. ч. | D5: Кількість бібліотечних пунктів | E5: Кількість бібліотечних приміщень | F5: Майнова | G5: Майнова | H5: Технічна | I5: Технічна | J5: Технічна | K5: Технічна | L5: Опалення | M5: Опалення | N5: Освітлення | O5: Освітлення | P5: Приміщення обладнане пандусом, підйомником | Q5: Кількість посадочних місць для користувачів | R5: Засоби зв'язку | S5: Засоби зв'язку | T5: Засоби зв'язку | U5: Кількість технічних засобів (од.) | V5: Кількість технічних засобів (од.) | W5: Кількість технічних засобів (од.) | X5: Кількість технічних засобів (од.) | Y5: Кількість технічних засобів (од.) | Z5: Кількість технічних засобів (од.) | AA5: Кількість технічних засобів (од.) | AB5: Кількість технічних засобів (од.) | AC5: Кількість технічних засобів (од.) | AD5: Кількість технічних засобів (од.)
A6: Загальна площа приміщень (кв. м) | B6: для зберігання фондів | C6: для обслуговування користувачів | D6: Кількість бібліотечних пунктів | E6: Кількість бібліотечних приміщень | F6: на праві оперативного управління | G6: орендоване | H6: потребує капітального ремонту | I6: аварійне | J6: не потребує ремонту | K6: потребує поточного ремонту | L6: Опалювані приміщення | M6: Неопалювані приміщення | N6: Приміщення з освітленням | O6: Приміщення без освітлення | P6: Приміщення обладнане пандусом, підйомником | Q6: Кількість посадочних місць для користувачів | R6: Кількість номерів стаціонарного телефонного зв'язку | S6: Кількість факсів | T6: Кількість адрес електронної пошти | U6: комп'ютерів | V6: у т. ч. комп'ютерів для користувачів | W6: комп'ютерів з доступом до мережі Інтернет | X6: у т. ч. комп'ютерів для користувачів з доступом до мережі Інтернет | Y6: у т. ч. комп'ютерів з тифлообладнанням та спеціалізованим програмним устаткуванням для сліпих та слабозорих | Z6: копіювально- розмножувальної техніки | AA6: мультимедійного обладнання | AB6: у т. ч. електронних пристроїв для читання | AC6: транспортних засобів | AD6: у т. ч. спеціалізованих транспортних засобів бібліобус
A7: 1 | B7: 2 | C7: 3 | D7: 4 | E7: 5 | F7: 6 | G7: 7 | H7: 8 | I7: 9 | J7: 10 | K7: 11 | L7: 12 | M7: 13 | N7: 14 | O7: 15 | P7: 16 | Q7: 17 | R7: 18 | S7: 19 | T7: 20 | U7: 21 | V7: 22 | W7: 23 | X7: 24 | Y7: 25 | Z7: 26 | AA7: 27 | AB7: 28 | AC7: 29 | AD7: 30
A8: 10 | B8: 11 | C8: 12 | D8: 13 | E8: 14 | F8: 15 | G8: 16 | H8: 17 | I8: 18 | J8: 19 | K8: 20 | L8: 21 | M8: 22 | N8: 23 | O8: 24 | P8: 25 | Q8: 26 | R8: 27 | S8: 28 | T8: 29 | U8: 30 | V8: 31 | W8: 32 | X8: 33 | Y8: 34 | Z8: 35 | AA8: 36 | AB8: 37 | AC8: 38 | AD8: 39
A11: ІІ. КОРИСТУВАЧІ, ВІДВІДУВАННЯ, ЗВЕРНЕННЯ ДО БІБЛІОТЕКИ | B11: ІІ. КОРИСТУВАЧІ, ВІДВІДУВАННЯ, ЗВЕРНЕННЯ ДО БІБЛІОТЕКИ | C11: ІІ. КОРИСТУВАЧІ, ВІДВІДУВАННЯ, ЗВЕРНЕННЯ ДО БІБЛІОТЕКИ | D11: ІІ. КОРИСТУВАЧІ, ВІДВІДУВАННЯ, ЗВЕРНЕННЯ ДО БІБЛІОТЕКИ | E11: ІІ. КОРИСТУВАЧІ, ВІДВІДУВАННЯ, ЗВЕРНЕННЯ ДО БІБЛІОТЕКИ | F11: ІІ. КОРИСТУВАЧІ, ВІДВІДУВАННЯ, ЗВЕРНЕННЯ ДО БІБЛІОТЕКИ | G11: ІІ. КОРИСТУВАЧІ, ВІДВІДУВАННЯ, ЗВЕРНЕННЯ ДО БІБЛІОТЕКИ | H11: ІІ. КОРИСТУВАЧІ, ВІДВІДУВАННЯ, ЗВЕРНЕННЯ ДО БІБЛІОТЕКИ | I11: ІІ. КОРИСТУВАЧІ, ВІДВІДУВАННЯ, ЗВЕРНЕННЯ ДО БІБЛІОТЕКИ | J11: ІІ. КОРИСТУВАЧІ, ВІДВІДУВАННЯ, ЗВЕРНЕННЯ ДО БІБЛІОТЕКИ | K11: ІІ. КОРИСТУВАЧІ, ВІДВІДУВАННЯ, ЗВЕРНЕННЯ ДО БІБЛІОТЕКИ | L11: ІІ. КОРИСТУВАЧІ, ВІДВІДУВАННЯ, ЗВЕРНЕННЯ ДО БІБЛІОТЕКИ | M11: ІІ. КОРИСТУВАЧІ, ВІДВІДУВАННЯ, ЗВЕРНЕННЯ ДО БІБЛІОТЕКИ | N11: ІІ. КОРИСТУВАЧІ, ВІДВІДУВАННЯ, ЗВЕРНЕННЯ ДО БІБЛІОТЕКИ | O11: ІІ. КОРИСТУВАЧІ, ВІДВІДУВАННЯ, ЗВЕРНЕННЯ ДО БІБЛІОТЕКИ | P11: ІІ. КОРИСТУВАЧІ, ВІДВІДУВАННЯ, ЗВЕРНЕННЯ ДО БІБЛІОТЕКИ | Q11: ІІ. КОРИСТУВАЧІ, ВІДВІДУВАННЯ, ЗВЕРНЕННЯ ДО БІБЛІОТЕКИ | R11: ІІ. КОРИСТУВАЧІ, ВІДВІДУВАННЯ, ЗВЕРНЕННЯ ДО БІБЛІОТЕКИ | S11: ІІ. КОРИСТУВАЧІ, ВІДВІДУВАННЯ, ЗВЕРНЕННЯ ДО БІБЛІОТЕКИ | T11: ІІ. КОРИСТУВАЧІ, ВІДВІДУВАННЯ, ЗВЕРНЕННЯ ДО БІБЛІОТЕКИ | U11: ІІ. КОРИСТУВАЧІ, ВІДВІДУВАННЯ, ЗВЕРНЕННЯ ДО БІБЛІОТЕКИ | V11: ІІ. КОРИСТУВАЧІ, ВІДВІДУВАННЯ, ЗВЕРНЕННЯ ДО БІБЛІОТЕКИ | W11: ІІ. КОРИСТУВАЧІ, ВІДВІДУВАННЯ, ЗВЕРНЕННЯ ДО БІБЛІОТЕКИ | X11: ІІ. КОРИСТУВАЧІ, ВІДВІДУВАННЯ, ЗВЕРНЕННЯ ДО БІБЛІОТЕКИ | Y11: ІІ. КОРИСТУВАЧІ, ВІДВІДУВАННЯ, ЗВЕРНЕННЯ ДО БІБЛІОТЕКИ | Z11: ІІ. КОРИСТУВАЧІ, ВІДВІДУВАННЯ, ЗВЕРНЕННЯ ДО БІБЛІОТЕКИ | AA11: ІІ. КОРИСТУВАЧІ, ВІДВІДУВАННЯ, ЗВЕРНЕННЯ ДО БІБЛІОТЕКИ | AB11: ІІ. КОРИСТУВАЧІ, ВІДВІДУВАННЯ, ЗВЕРНЕННЯ ДО БІБЛІОТЕКИ | AC11: ІІ. КОРИСТУВАЧІ, ВІДВІДУВАННЯ, ЗВЕРНЕННЯ ДО БІБЛІОТЕКИ | AD11: ІІ. КОРИСТУВАЧІ, ВІДВІДУВАННЯ, ЗВЕРНЕННЯ ДО БІБЛІОТЕКИ
A12: Населення зони обслуговування | B12: Кількість користувачів протягом року (усього) | C12: У т. ч. обслужених через нестаціонарні форми обслуговування | D12: Кількість зареєстрованих користувачів, згідно з ЄРК | E12: Кількість зареєстрованих користувачів за віком | F12: Кількість зареєстрованих користувачів за віком | G12: Кількість зареєстрованих користувачів за віком | H12: Кількість зареєстрованих користувачів за віком | I12: Кількість зареєстрованих користувачів за віком | J12: Кількість зареєстрованих користувачів за віком | K12: Кількість відвідувань бібліотеки | L12: Кількість відвідувань масових заходів, організованих бібліотекою | M12: Кількість заходів для користувачів в межах бібліотеки | N12: Кількість заходів для користувачів за межами бібліотеки | O12: Кількість учасників заходів в межах бібліотеки | P12: Кількість учасників заходів за межами бібліотеки | Q12: Загальна кількість навчань з ІТ для відвідувачів | R12: Загальна кількість осіб, які пройшли навчання з ІТ у бібліотеках | S12: Кількість осіб, які скористалися доступом до інтренету у бібліотеці | T12: Бібліотека працює годин на тиждень | U12: Бібліотека працює годин на тиждень | V12: Бібліотека працює годин на тиждень | W12: Бібліотека працює годин на тиждень | X12: Бібліотека працює годин на тиждень | Y12: Група за оплатою праці керівних працівників бібліотек та централізованих бібліотечних систем | Z12: Група за оплатою праці керівних працівників бібліотек та централізованих бібліотечних систем | AA12: Група за оплатою праці керівних працівників бібліотек та централізованих бібліотечних систем | AB12: Група за оплатою праці керівних працівників бібліотек та централізованих бібліотечних систем | AC12: Група за оплатою праці керівних працівників бібліотек та централізованих бібліотечних систем | AD12: Група за оплатою праці керівних працівників бібліотек та централізованих бібліотечних систем
A13: Населення зони обслуговування | B13: Кількість користувачів протягом року (усього) | C13: У т. ч. обслужених через нестаціонарні форми обслуговування | D13: Кількість зареєстрованих користувачів, згідно з ЄРК | E13: до 7 років | F13: від 7 до 15 років | G13: від 15 до 18 років | H13: від 18 до 22 років | I13: від 22 до 60 років | J13: від 60 років | K13: Кількість відвідувань бібліотеки | L13: Кількість відвідувань масових заходів, організованих бібліотекою | M13: Кількість заходів для користувачів в межах бібліотеки | N13: Кількість заходів для користувачів за межами бібліотеки | O13: Кількість учасників заходів в межах бібліотеки | P13: Кількість учасників заходів за межами бібліотеки | Q13: Загальна кількість навчань з ІТ для відвідувачів | R13: Загальна кількість осіб, які пройшли навчання з ІТ у бібліотеках | S13: Кількість осіб, які скористалися доступом до інтренету у бібліотеці | T13: до 10 | U13: від 11 до 20 | V13: від 21 до 30 | W13: від 31 до 40 | X13: більше 40 | Y13: національна | Z13: 1 група | AA13: 2 група | AB13: 3 група | AC13: 4 група | AD13: поза групою
A14: 1 | B14: 2 | C14: 3 | D14: 4 | E14: 5 | F14: 6 | G14: 7 | H14: 8 | I14: 9 | J14: 10 | K14: 11 | L14: 12 | M14: 13 | N14: 14 | O14: 15 | P14: 16 | Q14: 17 | R14: 18 | S14: 19 | T14: 20 | U14: 21 | V14: 22 | W14: 23 | X14: 24 | Y14: 25 | Z14: 26 | AA14: 27 | AB14: 28 | AC14: 29 | AD14: 30
A15: 40 | B15: 41 | C15: 42 | D15: 43 | E15: 44 | F15: 45 | G15: 46 | H15: 47 | I15: 48 | J15: 49 | K15: 50 | L15: 51 | M15: 52 | N15: 53 | O15: 54 | P15: 55 | Q15: 56 | R15: 57 | S15: 58 | T15: 59 | U15: 60 | V15: 61 | W15: 62 | X15: 63 | Y15: 64 | Z15: 65 | AA15: 66 | AB15: 67 | AC15: 68 | AD15: 69
A18: ІІІ.ФОНДИ: НАДІЙШЛО, ВИБУЛО | B18: ІІІ.ФОНДИ: НАДІЙШЛО, ВИБУЛО | C18: ІІІ.ФОНДИ: НАДІЙШЛО, ВИБУЛО | D18: ІІІ.ФОНДИ: НАДІЙШЛО, ВИБУЛО | E18: ІІІ.ФОНДИ: НАДІЙШЛО, ВИБУЛО | F18: ІІІ.ФОНДИ: НАДІЙШЛО, ВИБУЛО | G18: ІІІ.ФОНДИ: НАДІЙШЛО, ВИБУЛО | H18: ІІІ.ФОНДИ: НАДІЙШЛО, ВИБУЛО | I18: ІІІ.ФОНДИ: НАДІЙШЛО, ВИБУЛО | J18: ІІІ.ФОНДИ: НАДІЙШЛО, ВИБУЛО | K18: ІІІ.ФОНДИ: НАДІЙШЛО, ВИБУЛО | L18: ІІІ.ФОНДИ: НАДІЙШЛО, ВИБУЛО | M18: ІІІ.ФОНДИ: НАДІЙШЛО, ВИБУЛО | N18: ІІІ.ФОНДИ: НАДІЙШЛО, ВИБУЛО | O18: ІІІ.ФОНДИ: НАДІЙШЛО, ВИБУЛО | P18: ІІІ.ФОНДИ: НАДІЙШЛО, ВИБУЛО | Q18: ІІІ.ФОНДИ: НАДІЙШЛО, ВИБУЛО | R18: ІІІ.ФОНДИ: НАДІЙШЛО, ВИБУЛО | S18: ІІІ.ФОНДИ: НАДІЙШЛО, ВИБУЛО | T18: ІІІ.ФОНДИ: НАДІЙШЛО, ВИБУЛО | U18: ІІІ.ФОНДИ: НАДІЙШЛО, ВИБУЛО | V18: ІІІ.ФОНДИ: НАДІЙШЛО, ВИБУЛО | W18: ІІІ.ФОНДИ: НАДІЙШЛО, ВИБУЛО | X18: ІІІ.ФОНДИ: НАДІЙШЛО, ВИБУЛО | Y18: ІІІ.ФОНДИ: НАДІЙШЛО, ВИБУЛО | Z18: ІІІ.ФОНДИ: НАДІЙШЛО, ВИБУЛО | AA18: ІІІ.ФОНДИ: НАДІЙШЛО, ВИБУЛО | AB18: ІІІ.ФОНДИ: НАДІЙШЛО, ВИБУЛО | AC18: ІІІ.ФОНДИ: НАДІЙШЛО, ВИБУЛО | AD18: ІІІ.ФОНДИ: НАДІЙШЛО, ВИБУЛО | AE18: ІІІ.ФОНДИ: НАДІЙШЛО, ВИБУЛО | AF18: ІІІ.ФОНДИ: НАДІЙШЛО, ВИБУЛО | AG18: ІІІ.ФОНДИ: НАДІЙШЛО, ВИБУЛО | AH18: ІІІ.ФОНДИ: НАДІЙШЛО, ВИБУЛО | AI18: ІІІ.ФОНДИ: НАДІЙШЛО, ВИБУЛО | AJ18: ІІІ.ФОНДИ: НАДІЙШЛО, ВИБУЛО | AK18: ІІІ.ФОНДИ: НАДІЙШЛО, ВИБУЛО
A19: Надійшло документів до бібліотечного фонду | B19: у т. ч. за видами | C19: у т. ч. за видами | D19: у т. ч. за видами | E19: у т. ч. за видами | F19: у т. ч. за видами | G19: у т. ч. за мовами | H19: у т. ч. за мовами | I19: у т. ч. за мовами | J19: у т. ч. за мовами | K19: За джерелами комплектування | L19: За джерелами комплектування | M19: За джерелами комплектування | N19: За джерелами комплектування | O19: Вибуло документів з бібліотечного фонду | P19: у т. ч. за видами | Q19: у т. ч. за видами | R19: у т. ч. за видами | S19: у т. ч. за видами | T19: у т. ч. за видами | U19: у т. ч. за мовами | V19: у т. ч. за мовами | W19: у т. ч. за мовами | X19: у т. ч. за мовами | Y19: Фонд на кінець звітного року | Z19: у т. ч. за видами | AA19: у т. ч. за видами | AB19: у т. ч. за видами | AC19: у т. ч. за видами | AD19: у т. ч. за видами | AE19: у т. ч. за мовами | AF19: у т. ч. за мовами | AG19: у т. ч. за мовами | AH19: у т. ч. за мовами | AI19: Фонд рідкісних та цінних книг | AJ19: Кількість книжкових пам'яток | AK19: Кількість колекцій
A20: Надійшло документів до бібліотечного фонду | B20: книги | C20: періодичні видання | D20: аудіовізуальні матеріали | E20: електронні видання | F20: Інші | G20: українською | H20: російською | I20: мовами нацменшин | J20: іноземними | K20: Документів за Державними, місцевими програмами | L20: Придбано документів | M20: Обов'язковий примірник | N20: Інші джерела | O20: Вибуло документів з бібліотечного фонду | P20: книги | Q20: періодичні видання | R20: аудіовізуальні матеріали | S20: електронні видання | T20: інші | U20: українською | V20: російською | W20: мовами нацменшин | X20: іноземними | Y20: Фонд на кінець звітного року | Z20: книги | AA20: періодичні видання | AB20: аудіовізуальні матеріали | AC20: електронні видання | AD20: інші | AE20: українською | AF20: російською | AG20: мовами нацменшин | AH20: іноземними | AI20: Фонд рідкісних та цінних книг | AJ20: Кількість книжкових пам'яток | AK20: Кількість колекцій
A21: 1 | B21: 2 | C21: 3 | D21: 4 | E21: 5 | F21: 6 | G21: 7 | H21: 8 | I21: 9 | J21: 10 | K21: 11 | L21: 12 | M21: 13 | N21: 14 | O21: 15 | P21: 16 | Q21: 17 | R21: 18 | S21: 19 | T21: 20 | U21: 21 | V21: 22 | W21: 23 | X21: 24 | Y21: 25 | Z21: 26 | AA21: 27 | AB21: 28 | AC21: 29 | AD21: 30 | AE21: 31 | AF21: 32 | AG21: 33 | AH21: 34 | AI21: 35 | AJ21: 36 | AK21: 37
A22: 70 | B22: 71 | C22: 72 | D22: 73 | E22: 74 | F22: 75 | G22: 76 | H22: 77 | I22: 78 | J22: 79 | K22: 80 | L22: 81 | M22: 82 | N22: 83 | O22: 84 | P22: 85 | Q22: 86 | R22: 87 | S22: 88 | T22: 89 | U22: 90 | V22: 91 | W22: 92 | X22: 93 | Y22: 94 | Z22: 95 | AA22: 96 | AB22: 97 | AC22: 98 | AD22: 99 | AE22: 100 | AF22: 101 | AG22: 102 | AH22: 103 | AI22: 104 | AJ22: 105 | AK22: 106
A25: IV. ВИДАЧА | B25: IV. ВИДАЧА | C25: IV. ВИДАЧА | D25: IV. ВИДАЧА | E25: IV. ВИДАЧА | F25: IV. ВИДАЧА | G25: IV. ВИДАЧА | H25: IV. ВИДАЧА | I25: IV. ВИДАЧА | J25: IV. ВИДАЧА | K25: IV. ВИДАЧА | L25: IV. ВИДАЧА | M25: IV. ВИДАЧА | N25: IV. ВИДАЧА | O25: IV. ВИДАЧА | P25: IV. ВИДАЧА | Q25: IV. ВИДАЧА | R25: IV. ВИДАЧА | S25: IV. ВИДАЧА | T25: IV. ВИДАЧА
A26: Видача документів (усього) | B26: у т. ч. за видами видань | C26: у т. ч. за видами видань | D26: у т. ч. за видами видань | E26: у т. ч. за видами видань | F26: у т. ч. за видами видань | G26: у т. ч. за мовами | H26: у т. ч. за мовами | I26: у т. ч. за мовами | J26: у т. ч. за мовами | K26: у т. ч. видано примірників дітям до 15 років | L26: у т. ч. видано примірників дітям до 15 років | M26: у т. ч. видано примірників дітям до 15 років | N26: у т. ч. видано примірників дітям до 15 років | O26: у т. ч. видано примірників дітям до 15 років | P26: у т. ч. видано примірників дітям до 15 років | Q26: у т. ч. видано примірників дітям до 15 років | R26: у т. ч. видано примірників дітям до 15 років | S26: у т. ч. видано примірників дітям до 15 років | T26: у т. ч. видано примірників дітям до 15 років
A27: Видача документів (усього) | B27: книги | C27: періодичні видання | D27: аудіовізуальні матеріали | E27: електронні видання | F27: інші | G27: українською | H27: російською | I27: мовами нацменшин | J27: іноземними | K27: Усього | L27: у т. ч. за видами | M27: у т. ч. за видами | N27: у т. ч. за видами | O27: у т. ч. за видами | P27: у т. ч. за видами | Q27: у т. ч. за мовами | R27: у т. ч. за мовами | S27: у т. ч. за мовами | T27: у т. ч. за мовами
A28: Видача документів (усього) | B28: книги | C28: періодичні видання | D28: аудіовізуальні матеріали | E28: електронні видання | F28: інші | G28: українською | H28: російською | I28: мовами нацменшин | J28: іноземними | K28: Усього | L28: книги | M28: періодичні видання | N28: аудіовізуальні матеріали | O28: електронні видання | P28: інші | Q28: українською | R28: російською | S28: мовами нацменшин | T28: іноземними
A29: 1 | B29: 2 | C29: 3 | D29: 4 | E29: 5 | F29: 6 | G29: 7 | H29: 8 | I29: 9 | J29: 10 | K29: 11 | L29: 12 | M29: 13 | N29: 14 | O29: 15 | P29: 16 | Q29: 17 | R29: 18 | S29: 19 | T29: 20
A30: 107 | B30: 108 | C30: 109 | D30: 110 | E30: 111 | F30: 112 | G30: 113 | H30: 114 | I30: 115 | J30: 116 | K30: 117 | L30: 118 | M30: 119 | N30: 120 | O30: 121 | P30: 122 | Q30: 123 | R30: 124 | S30: 125 | T30: 126
A33: V. EЛЕКТРОННІ РЕСУРСИ | B33: V. EЛЕКТРОННІ РЕСУРСИ | C33: V. EЛЕКТРОННІ РЕСУРСИ | D33: V. EЛЕКТРОННІ РЕСУРСИ | E33: V. EЛЕКТРОННІ РЕСУРСИ | F33: V. EЛЕКТРОННІ РЕСУРСИ | G33: V. EЛЕКТРОННІ РЕСУРСИ | H33: V. EЛЕКТРОННІ РЕСУРСИ | I33: V. EЛЕКТРОННІ РЕСУРСИ | J33: V. EЛЕКТРОННІ РЕСУРСИ | K33: V. EЛЕКТРОННІ РЕСУРСИ
A34: Кількість власних веб-сайтів | B34: Інтернет-адреси власних веб-сайтів | C34: Кількість звернень до власних веб-сайтів | D34: Кількість блогів, сторінок у соціальних мережах | E34: Обсяг ЕК | F34: Кількість власних Баз даних | G34: Обсяг власних БД | H34: Обсяг електронної (цифрової) бібліотеки | I34: з них документів, доступ до яких можливий через мережу Інтернет | J34: Кількість віддалених ліцензованих ресурсів | K34: Кількість звернень до віддалених ліцензованих ресурсів
A35: 1 | B35: 2 | C35: 3 | D35: 4 | E35: 5 | F35: 6 | G35: 7 | H35: 8 | I35: 9 | J35: 10 | K35: 11
A36: 127 | B36: 128 | C36: 129 | D36: 130 | E36: 131 | F36: 132 | G36: 133 | H36: 134 | I36: 135 | J36: 136 | K36: 137
A39: VI. ДОВІДКОВО-ІНФОРМАЦІЙНЕ ОБСЛУГОВУВАННЯ. МІЖБІБЛІОТЕЧНИЙ АБОНЕМЕНТ | B39: VI. ДОВІДКОВО-ІНФОРМАЦІЙНЕ ОБСЛУГОВУВАННЯ. МІЖБІБЛІОТЕЧНИЙ АБОНЕМЕНТ | C39: VI. ДОВІДКОВО-ІНФОРМАЦІЙНЕ ОБСЛУГОВУВАННЯ. МІЖБІБЛІОТЕЧНИЙ АБОНЕМЕНТ | D39: VI. ДОВІДКОВО-ІНФОРМАЦІЙНЕ ОБСЛУГОВУВАННЯ. МІЖБІБЛІОТЕЧНИЙ АБОНЕМЕНТ | E39: VI. ДОВІДКОВО-ІНФОРМАЦІЙНЕ ОБСЛУГОВУВАННЯ. МІЖБІБЛІОТЕЧНИЙ АБОНЕМЕНТ
A40: Кількість виконаних довідок | B40: у т. ч. віртуальних | C40: Кількість абонентів МБА, ММБА | D40: Кількість виданих документів іншим бібліотекам через МБА, ММБА | E40: Кількість отриманих документів з інших бібліотек
A41: 1 | B41: 2 | C41: 3 | D41: 4 | E41: 5
A42: 138 | B42: 139 | C42: 140 | D42: 141 | E42: 142
A45: VII. ПЕРСОНАЛ БІБЛІОТЕКИ | B45: VII. ПЕРСОНАЛ БІБЛІОТЕКИ | C45: VII. ПЕРСОНАЛ БІБЛІОТЕКИ | D45: VII. ПЕРСОНАЛ БІБЛІОТЕКИ | E45: VII. ПЕРСОНАЛ БІБЛІОТЕКИ | F45: VII. ПЕРСОНАЛ БІБЛІОТЕКИ | G45: VII. ПЕРСОНАЛ БІБЛІОТЕКИ | H45: VII. ПЕРСОНАЛ БІБЛІОТЕКИ | I45: VII. ПЕРСОНАЛ БІБЛІОТЕКИ | J45: VII. ПЕРСОНАЛ БІБЛІОТЕКИ | K45: VII. ПЕРСОНАЛ БІБЛІОТЕКИ | L45: VII. ПЕРСОНАЛ БІБЛІОТЕКИ | M45: VII. ПЕРСОНАЛ БІБЛІОТЕКИ | N45: VII. ПЕРСОНАЛ БІБЛІОТЕКИ | O45: VII. ПЕРСОНАЛ БІБЛІОТЕКИ | P45: VII. ПЕРСОНАЛ БІБЛІОТЕКИ | Q45: VII. ПЕРСОНАЛ БІБЛІОТЕКИ | R45: VII. ПЕРСОНАЛ БІБЛІОТЕКИ | S45: VII. ПЕРСОНАЛ БІБЛІОТЕКИ
A46: Загальна кількість працівників | B46: Кількість бібліотечних фахівців | C46: з них мають освіту | D46: з них мають освіту | E46: з них мають освіту | F46: з них мають освіту | G46: Кількість бібліотечних фахівців, які мають стаж бібліотечної роботи | H46: Кількість бібліотечних фахівців, які мають стаж бібліотечної роботи | I46: Кількість бібліотечних фахівців, які мають стаж бібліотечної роботи | J46: Кількість бібліотечних фахівців, які мають стаж бібліотечної роботи | K46: Віковий склад кадрів | L46: Віковий склад кадрів | M46: Віковий склад кадрів | N46: Віковий склад кадрів | O46: Із загальної кількості бібліотечних фахівців працюють | P46: Із загальної кількості бібліотечних фахівців працюють | Q46: Кількість бібліотечних фахівців, які підвищили свою кваліфікацію (протягом року) | R46: Загальна кількість навчань з ІТ для бібліотекарів | S46: Кількість бібліотекарів, для яких організовано навчання у тренінгових центрах
A47: Загальна кількість працівників | B47: Кількість бібліотечних фахівців | C47: повну вищу | D47: у т. ч. спеціальну | E47: базову вищу | F47: у т. ч. спеціальну | G47: до 3 років | H47: понад 3 роки | I47: понад 10 років | J47: понад 20 років | K47: до 30 років | L47: від 30 до 45 років | M47: від 45 до 60 років | N47: від 60 років | O47: повний робочий день | P47: неповний робочий день | Q47: Кількість бібліотечних фахівців, які підвищили свою кваліфікацію (протягом року) | R47: Загальна кількість навчань з ІТ для бібліотекарів | S47: Кількість бібліотекарів, для яких організовано навчання у тренінгових центрах
A48: 1 | B48: 2 | C48: 3 | D48: 4 | E48: 5 | F48: 6 | G48: 7 | H48: 8 | I48: 9 | J48: 10 | K48: 11 | L48: 12 | M48: 13 | N48: 14 | O48: 15 | P48: 16 | Q48: 17 | R48: 18 | S48: 19
A49: 143 | B49: 144 | C49: 145 | D49: 146 | E49: 147 | F49: 148 | G49: 149 | H49: 150 | I49: 151 | J49: 152 | K49: 153 | L49: 154 | M49: 155 | N49: 156 | O49: 157 | P49: 158 | Q49: 159 | R49: 160 | S49: 161
A52: VIII. ФІНАНСУВАННЯ | B52: VIII. ФІНАНСУВАННЯ | C52: VIII. ФІНАНСУВАННЯ | D52: VIII. ФІНАНСУВАННЯ | E52: VIII. ФІНАНСУВАННЯ | F52: VIII. ФІНАНСУВАННЯ | G52: VIII. ФІНАНСУВАННЯ | H52: VIII. ФІНАНСУВАННЯ | I52: VIII. ФІНАНСУВАННЯ | J52: VIII. ФІНАНСУВАННЯ | K52: VIII. ФІНАНСУВАННЯ | L52: VIII. ФІНАНСУВАННЯ | M52: VIII. ФІНАНСУВАННЯ | N52: VIII. ФІНАНСУВАННЯ | O52: VIII. ФІНАНСУВАННЯ | P52: VIII. ФІНАНСУВАННЯ | Q52: VIII. ФІНАНСУВАННЯ | R52: VIII. ФІНАНСУВАННЯ | S52: VIII. ФІНАНСУВАННЯ | T52: VIII. ФІНАНСУВАННЯ
A53: Загальна сума надходжень коштів за рік | B53: Кошти загального фонду | C53: Кошти загального фонду | D53: Кошти загального фонду | E53: Кошти загального фонду | F53: Кошти загального фонду | G53: Кошти загального фонду | H53: Кошти спеціального фонду | I53: Кошти спеціального фонду | J53: Кошти спеціального фонду | K53: Кошти спеціального фонду | L53: Викорис- тання коштів, усього | M53: з них | N53: з них | O53: з них | P53: з них | Q53: з них | R53: з них | S53: з них | T53: Залишок коштів спеціаль ного фонду на кінець року
A54: Загальна сума надходжень коштів за рік | B54: усього | C54: з них | D54: з них | E54: з них | F54: з них | G54: з них | H54: усього | I54: з них | J54: з них | K54: з них | L54: Викорис- тання коштів, усього | M54: на оплату праці | N54: на комплектування фонду | O54: у т. ч. за рахунок коштів загального фонду | P54: на поточний і капітальний ремонти | Q54: у т. ч. за рахунок коштів загального фонду | R54: на придбання основних засобів | S54: у т. ч. за рахунок коштів загального фонду | T54: Залишок коштів спеціаль ного фонду на кінець року
A55: Загальна сума надходжень коштів за рік | B55: усього | C55: на оплату праці | D55: на комплектування | E55: у т. ч. на періодичні видання | F55: на поточний і капітальний ремонти | G55: на придбання основних засобів | H55: усього | I55: надання платних послуг | J55: благодійні, спонсорські внески | K55: інші джерела | L55: Викорис- тання коштів, усього | M55: на оплату праці | N55: на комплектування фонду | O55: у т. ч. за рахунок коштів загального фонду | P55: на поточний і капітальний ремонти | Q55: у т. ч. за рахунок коштів загального фонду | R55: на придбання основних засобів | S55: у т. ч. за рахунок коштів загального фонду | T55: Залишок коштів спеціаль ного фонду на кінець року
A56: 1 | B56: 2 | C56: 3 | D56: 4 | E56: 5 | F56: 6 | G56: 7 | H56: 8 | I56: 9 | J56: 10 | K56: 11 | L56: 12 | M56: 13 | N56: 14 | O56: 15 | P56: 16 | Q56: 17 | R56: 18 | S56: 19 | T56: 20
A57: 162 | B57: 163 | C57: 164 | D57: 165 | E57: 166 | F57: 167 | G57: 168 | H57: 169 | I57: 170 | J57: 171 | K57: 172 | L57: 173 | M57: 174 | N57: 175 | O57: 176 | P57: 177 | Q57: 178 | R57: 179 | S57: 180 | T57: 181

Sheet Звіт
A1: Кількість бібліотек в звіті: | B1: Кількість бібліотек в звіті: | C1: Кількість бібліотек в звіті: | D1: Кількість бібліотек в звіті: | E1: Кількість бібліотек в звіті: | F1: Кількість бібліотек в звіті: | G1: 1
A3: І.МАТЕРІАЛЬНО-ТЕХНІЧНА БАЗА | B3: І.МАТЕРІАЛЬНО-ТЕХНІЧНА БАЗА | C3: І.МАТЕРІАЛЬНО-ТЕХНІЧНА БАЗА | D3: І.МАТЕРІАЛЬНО-ТЕХНІЧНА БАЗА | E3: І.МАТЕРІАЛЬНО-ТЕХНІЧНА БАЗА | F3: І.МАТЕРІАЛЬНО-ТЕХНІЧНА БАЗА | G3: І.МАТЕРІАЛЬНО-ТЕХНІЧНА БАЗА | H3: І.МАТЕРІАЛЬНО-ТЕХНІЧНА БАЗА | I3: І.МАТЕРІАЛЬНО-ТЕХНІЧНА БАЗА | J3: І.МАТЕРІАЛЬНО-ТЕХНІЧНА БАЗА | K3: І.МАТЕРІАЛЬНО-ТЕХНІЧНА БАЗА | L3: І.МАТЕРІАЛЬНО-ТЕХНІЧНА БАЗА | M3: І.МАТЕРІАЛЬНО-ТЕХНІЧНА БАЗА | N3: І.МАТЕРІАЛЬНО-ТЕХНІЧНА БАЗА | O3: І.МАТЕРІАЛЬНО-ТЕХНІЧНА БАЗА | P3: І.МАТЕРІАЛЬНО-ТЕХНІЧНА БАЗА | Q3: І.МАТЕРІАЛЬНО-ТЕХНІЧНА БАЗА | R3: І.МАТЕРІАЛЬНО-ТЕХНІЧНА БАЗА | S3: І.МАТЕРІАЛЬНО-ТЕХНІЧНА БАЗА | T3: І.МАТЕРІАЛЬНО-ТЕХНІЧНА БАЗА | U3: І.МАТЕРІАЛЬНО-ТЕХНІЧНА БАЗА | V3: І.МАТЕРІАЛЬНО-ТЕХНІЧНА БАЗА | W3: І.МАТЕРІАЛЬНО-ТЕХНІЧНА БАЗА | X3: І.МАТЕРІАЛЬНО-ТЕХНІЧНА БАЗА | Y3: І.МАТЕРІАЛЬНО-ТЕХНІЧНА БАЗА | Z3: І.МАТЕРІАЛЬНО-ТЕХНІЧНА БАЗА | AA3: І.МАТЕРІАЛЬНО-ТЕХНІЧНА БАЗА | AB3: І.МАТЕРІАЛЬНО-ТЕХНІЧНА БАЗА | AC3: І.МАТЕРІАЛЬНО-ТЕХНІЧНА БАЗА | AD3: І.МАТЕРІАЛЬНО-ТЕХНІЧНА БАЗА
A4: Загальна площа приміщень (кв. м) | B4: у т. ч. | C4: у т. ч. | D4: Кількість бібліотечних пунктів | E4: Кількість бібліотечних приміщень | F4: Характеристика приміщень бібліотеки (од.) | G4: Характеристика приміщень бібліотеки (од.) | H4: Характеристика приміщень бібліотеки (од.) | I4: Характеристика приміщень бібліотеки (од.) | J4: Характеристика приміщень бібліотеки (од.) | K4: Характеристика приміщень бібліотеки (од.) | L4: Характеристика приміщень бібліотеки (од.) | M4: Характеристика приміщень бібліотеки (од.) | N4: Характеристика приміщень бібліотеки (од.) | O4: Характеристика приміщень бібліотеки (од.) | P4: Характеристика приміщень бібліотеки (од.) | Q4: Кількість посадочних місць для користувачів | R4: Засоби зв'язку | S4: Засоби зв'язку | T4: Засоби зв'язку | U4: Кількість технічних засобів (од.) | V4: Кількість технічних засобів (од.) | W4: Кількість технічних засобів (од.) | X4: Кількість технічних засобів (од.) | Y4: Кількість технічних засобів (од.) | Z4: Кількість технічних засобів (од.) | AA4: Кількість технічних засобів (од.) | AB4: Кількість технічних засобів (од.) | AC4: Кількість технічних засобів (од.) | AD4: Кількість технічних засобів (од.)
A5: Загальна площа приміщень (кв. м) | B5: у т. ч. | C5: у т. ч. | D5: Кількість бібліотечних пунктів | E5: Кількість бібліотечних приміщень | F5: Майнова | G5: Майнова | H5: Технічна | I5: Технічна | J5: Технічна | K5: Технічна | L5: Опалення | M5: Опалення | N5: Освітлення | O5: Освітлення | P5: приміщення обладнане пандусом, підйомником | Q5: Кількість посадочних місць для користувачів | R5: Засоби зв'язку | S5: Засоби зв'язку | T5: Засоби зв'язку | U5: Кількість технічних засобів (од.) | V5: Кількість технічних засобів (од.) | W5: Кількість технічних засобів (од.) | X5: Кількість технічних засобів (од.) | Y5: Кількість технічних засобів (од.) | Z5: Кількість технічних засобів (од.) | AA5: Кількість технічних засобів (од.) | AB5: Кількість технічних засобів (од.) | AC5: Кількість технічних засобів (од.) | AD5: Кількість технічних засобів (од.)
A6: Загальна площа приміщень (кв. м) | B6: для зберігання фондів | C6: для обслуговування користувачів | D6: Кількість бібліотечних пунктів | E6: Кількість бібліотечних приміщень | F6: на праві оперативного управління | G6: орендоване | H6: потребує капітального ремонту | I6: аварійне | J6: не потребує ремонту | K6: потребує поточного ремонту | L6: опалювані приміщення | M6: неопалювані приміщення | N6: приміщення з освітленням | O6: приміщення без освітлення | P6: приміщення обладнане пандусом, підйомником | Q6: Кількість посадочних місць для користувачів | R6: Кількість номерів стаціонарного телефонного зв'язку | S6: Кількість факсів | T6: Кількість адрес електронної пошти | U6: комп'ютерів | V6: у т. ч. комп'ютерів для користувачів | W6: комп'ютерів з доступом до мережі Інтернет | X6: у т. ч. комп'ютерів для користувачів з доступом до мережі Інтернет | Y6: у т. ч. комп'ютерів з тифлообладнанням та спеціалізованим програмним устаткуванням для сліпих та слабозорих | Z6: копіювально- розмножувальної техніки | AA6: мультимедійного обладнання | AB6: у т. ч. електронних пристроїв для читання | AC6: транспортних засобів | AD6: у т. ч. спеціалізованих транспортних засобів бібліобус
A7: 1 | B7: 2 | C7: 3 | D7: 4 | E7: 5 | F7: 6 | G7: 7 | H7: 8 | I7: 9 | J7: 10 | K7: 11 | L7: 12 | M7: 13 | N7: 14 | O7: 15 | P7: 16 | Q7: 17 | R7: 18 | S7: 19 | T7: 20 | U7: 21 | V7: 22 | W7: 23 | X7: 24 | Y7: 25 | Z7: 26 | AA7: 27 | AB7: 28 | AC7: 29 | AD7: 30
A8: 148 | B8: 48 | C8: 100 | D8: 0 | E8: 1 | F8: 0 | G8: 1 | H8: 0 | I8: 0 | J8: 1 | K8: 0 | L8: 1 | M8: 0 | N8: 1 | O8: 0 | P8: 0 | Q8: 80 | R8: 0 | S8: 0 | T8: 3 | U8: 18 | V8: 5 | W8: 18 | X8: 5 | Y8: 0 | Z8: 1 | AA8: 5 | AB8: 0 | AC8: 0 | AD8: 0
A11: ІІ. КОРИСТУВАЧІ, ВІДВІДУВАННЯ, ЗВЕРНЕННЯ ДО БІБЛІОТЕКИ | B11: ІІ. КОРИСТУВАЧІ, ВІДВІДУВАННЯ, ЗВЕРНЕННЯ ДО БІБЛІОТЕКИ | C11: ІІ. КОРИСТУВАЧІ, ВІДВІДУВАННЯ, ЗВЕРНЕННЯ ДО БІБЛІОТЕКИ | D11: ІІ. КОРИСТУВАЧІ, ВІДВІДУВАННЯ, ЗВЕРНЕННЯ ДО БІБЛІОТЕКИ | E11: ІІ. КОРИСТУВАЧІ, ВІДВІДУВАННЯ, ЗВЕРНЕННЯ ДО БІБЛІОТЕКИ | F11: ІІ. КОРИСТУВАЧІ, ВІДВІДУВАННЯ, ЗВЕРНЕННЯ ДО БІБЛІОТЕКИ | G11: ІІ. КОРИСТУВАЧІ, ВІДВІДУВАННЯ, ЗВЕРНЕННЯ ДО БІБЛІОТЕКИ | H11: ІІ. КОРИСТУВАЧІ, ВІДВІДУВАННЯ, ЗВЕРНЕННЯ ДО БІБЛІОТЕКИ | I11: ІІ. КОРИСТУВАЧІ, ВІДВІДУВАННЯ, ЗВЕРНЕННЯ ДО БІБЛІОТЕКИ | J11: ІІ. КОРИСТУВАЧІ, ВІДВІДУВАННЯ, ЗВЕРНЕННЯ ДО БІБЛІОТЕКИ | K11: ІІ. КОРИСТУВАЧІ, ВІДВІДУВАННЯ, ЗВЕРНЕННЯ ДО БІБЛІОТЕКИ | L11: ІІ. КОРИСТУВАЧІ, ВІДВІДУВАННЯ, ЗВЕРНЕННЯ ДО БІБЛІОТЕКИ | M11: ІІ. КОРИСТУВАЧІ, ВІДВІДУВАННЯ, ЗВЕРНЕННЯ ДО БІБЛІОТЕКИ | N11: ІІ. КОРИСТУВАЧІ, ВІДВІДУВАННЯ, ЗВЕРНЕННЯ ДО БІБЛІОТЕКИ | O11: ІІ. КОРИСТУВАЧІ, ВІДВІДУВАННЯ, ЗВЕРНЕННЯ ДО БІБЛІОТЕКИ | P11: ІІ. КОРИСТУВАЧІ, ВІДВІДУВАННЯ, ЗВЕРНЕННЯ ДО БІБЛІОТЕКИ | Q11: ІІ. КОРИСТУВАЧІ, ВІДВІДУВАННЯ, ЗВЕРНЕННЯ ДО БІБЛІОТЕКИ | R11: ІІ. КОРИСТУВАЧІ, ВІДВІДУВАННЯ, ЗВЕРНЕННЯ ДО БІБЛІОТЕКИ | S11: ІІ. КОРИСТУВАЧІ, ВІДВІДУВАННЯ, ЗВЕРНЕННЯ ДО БІБЛІОТЕКИ | T11: ІІ. КОРИСТУВАЧІ, ВІДВІДУВАННЯ, ЗВЕРНЕННЯ ДО БІБЛІОТЕКИ | U11: ІІ. КОРИСТУВАЧІ, ВІДВІДУВАННЯ, ЗВЕРНЕННЯ ДО БІБЛІОТЕКИ | V11: ІІ. КОРИСТУВАЧІ, ВІДВІДУВАННЯ, ЗВЕРНЕННЯ ДО БІБЛІОТЕКИ | W11: ІІ. КОРИСТУВАЧІ, ВІДВІДУВАННЯ, ЗВЕРНЕННЯ ДО БІБЛІОТЕКИ | X11: ІІ. КОРИСТУВАЧІ, ВІДВІДУВАННЯ, ЗВЕРНЕННЯ ДО БІБЛІОТЕКИ | Y11: ІІ. КОРИСТУВАЧІ, ВІДВІДУВАННЯ, ЗВЕРНЕННЯ ДО БІБЛІОТЕКИ | Z11: ІІ. КОРИСТУВАЧІ, ВІДВІДУВАННЯ, ЗВЕРНЕННЯ ДО БІБЛІОТЕКИ | AA11: ІІ. КОРИСТУВАЧІ, ВІДВІДУВАННЯ, ЗВЕРНЕННЯ ДО БІБЛІОТЕКИ | AB11: ІІ. КОРИСТУВАЧІ, ВІДВІДУВАННЯ, ЗВЕРНЕННЯ ДО БІБЛІОТЕКИ | AC11: ІІ. КОРИСТУВАЧІ, ВІДВІДУВАННЯ, ЗВЕРНЕННЯ ДО БІБЛІОТЕКИ | AD11: ІІ. КОРИСТУВАЧІ, ВІДВІДУВАННЯ, ЗВЕРНЕННЯ ДО БІБЛІОТЕКИ | AE11: ІІ. КОРИСТУВАЧІ, ВІДВІДУВАННЯ, ЗВЕРНЕННЯ ДО БІБЛІОТЕКИ
A12: Населення зони обслуговування | B12: Кількість користувачів протягом року (усього) | C12: У т. ч. обслужених через нестаціонарні форми обслуговування | D12: Кількість зареєстрованих користувачів, згідно з ЄРК | E12: Кількість зареєстрованих користувачів за віком | F12: Кількість зареєстрованих користувачів за віком | G12: Кількість зареєстрованих користувачів за віком | H12: Кількість зареєстрованих користувачів за віком | I12: Кількість зареєстрованих користувачів за віком | J12: Кількість зареєстрованих користувачів за віком | K12: Кількість відвідувань бібліотеки | L12: Кількість відвідувань масових заходів, організованих бібліотекою | M12: Кількість заходів для користувачів в межах бібліотеки | N12: Кількість заходів для користувачів за межами бібліотеки | O12: Кількість учасників заходів в межах бібліотеки | P12: Кількість учасників заходів за межами бібліотеки | Q12: Загальна кількість навчань з ІТ для відвідувачів | R12: Загальна кількість осіб, які пройшли навчання з ІТ у бібліотеках | S12: Кількість осіб, які скористалися доступом до інтернет у бібліотеці | T12: Бібліотека працює годин на тиждень | U12: Бібліотека працює годин на тиждень | V12: Бібліотека працює годин на тиждень | W12: Бібліотека працює годин на тиждень | X12: Бібліотека працює годин на тиждень | Y12: Група за оплатою праці керівних працівників бібліотек та централізованих бібліотечних систем | Z12: Група за оплатою праці керівних працівників бібліотек та централізованих бібліотечних систем | AA12: Група за оплатою праці керівних працівників бібліотек та централізованих бібліотечних систем | AB12: Група за оплатою праці керівних працівників бібліотек та централізованих бібліотечних систем | AC12: Група за оплатою праці керівних працівників бібліотек та централізованих бібліотечних систем | AD12: Група за оплатою праці керівних працівників бібліотек та централізованих бібліотечних систем
A13: Населення зони обслуговування | B13: Кількість користувачів протягом року (усього) | C13: У т. ч. обслужених через нестаціонарні форми обслуговування | D13: Кількість зареєстрованих користувачів, згідно з ЄРК | E13: до 7 років | F13: від 7 до 15 років | G13: від 15 до 18 років | H13: від 18 до 22 років | I13: від 22 до 60 років | J13: від 60 років | K13: Кількість відвідувань бібліотеки | L13: Кількість відвідувань масових заходів, організованих бібліотекою | M13: Кількість заходів для користувачів в межах бібліотеки | N13: Кількість заходів для користувачів за межами бібліотеки | O13: Кількість учасників заходів в межах бібліотеки | P13: Кількість учасників заходів за межами бібліотеки | Q13: Загальна кількість навчань з ІТ для відвідувачів | R13: Загальна кількість осіб, які пройшли навчання з ІТ у бібліотеках | S13: Кількість осіб, які скористалися доступом до інтернет у бібліотеці | T13: до 10 | U13: від 11 до 20 | V13: від 21 до 30 | W13: від 31 до 40 включно | X13: більше 40 | Y13: національна | Z13: 1 група | AA13: 2 група | AB13: 3 група | AC13: 4 група | AD13: поза групою | AE13: Кількість годин, фактично відпрацьованих бібліотекою
A14: 1 | B14: 2 | C14: 3 | D14: 4 | E14: 5 | F14: 6 | G14: 7 | H14: 8 | I14: 9 | J14: 10 | K14: 11 | L14: 12 | M14: 13 | N14: 14 | O14: 15 | P14: 16 | Q14: 17 | R14: 18 | S14: 19 | T14: 20 | U14: 21 | V14: 22 | W14: 23 | X14: 24 | Y14: 25 | Z14: 26 | AA14: 27 | AB14: 28 | AC14: 29 | AD14: 30 | AE14: 31
A15: 0 | B15: 9774 | C15: 0 | D15: 2795 | E15: 19 | F15: 350 | G15: 380 | H15: 568 | I15: 1401 | J15: 77 | K15: 100883 | L15: 5660 | M15: 267 | N15: 60 | O15: 3076 | P15: 2584 | Q15: 74 | R15: 440 | S15: 13662 | T15: 0 | U15: 0 | V15: 0 | W15: 0 | X15: 1 | Y15: 0 | Z15: 0 | AA15: 1 | AB15: 0 | AC15: 0 | AD15: 0 | AE15: 3679
A18: ІІІ.ФОНДИ: НАДІЙШЛО, ВИБУЛО | B18: ІІІ.ФОНДИ: НАДІЙШЛО, ВИБУЛО | C18: ІІІ.ФОНДИ: НАДІЙШЛО, ВИБУЛО | D18: ІІІ.ФОНДИ: НАДІЙШЛО, ВИБУЛО | E18: ІІІ.ФОНДИ: НАДІЙШЛО, ВИБУЛО | F18: ІІІ.ФОНДИ: НАДІЙШЛО, ВИБУЛО | G18: ІІІ.ФОНДИ: НАДІЙШЛО, ВИБУЛО | H18: ІІІ.ФОНДИ: НАДІЙШЛО, ВИБУЛО | I18: ІІІ.ФОНДИ: НАДІЙШЛО, ВИБУЛО | J18: ІІІ.ФОНДИ: НАДІЙШЛО, ВИБУЛО | K18: ІІІ.ФОНДИ: НАДІЙШЛО, ВИБУЛО | L18: ІІІ.ФОНДИ: НАДІЙШЛО, ВИБУЛО | M18: ІІІ.ФОНДИ: НАДІЙШЛО, ВИБУЛО | N18: ІІІ.ФОНДИ: НАДІЙШЛО, ВИБУЛО | O18: ІІІ.ФОНДИ: НАДІЙШЛО, ВИБУЛО | P18: ІІІ.ФОНДИ: НАДІЙШЛО, ВИБУЛО | Q18: ІІІ.ФОНДИ: НАДІЙШЛО, ВИБУЛО | R18: ІІІ.ФОНДИ: НАДІЙШЛО, ВИБУЛО | S18: ІІІ.ФОНДИ: НАДІЙШЛО, ВИБУЛО | T18: ІІІ.ФОНДИ: НАДІЙШЛО, ВИБУЛО | U18: ІІІ.ФОНДИ: НАДІЙШЛО, ВИБУЛО | V18: ІІІ.ФОНДИ: НАДІЙШЛО, ВИБУЛО | W18: ІІІ.ФОНДИ: НАДІЙШЛО, ВИБУЛО | X18: ІІІ.ФОНДИ: НАДІЙШЛО, ВИБУЛО | Y18: ІІІ.ФОНДИ: НАДІЙШЛО, ВИБУЛО | Z18: ІІІ.ФОНДИ: НАДІЙШЛО, ВИБУЛО | AA18: ІІІ.ФОНДИ: НАДІЙШЛО, ВИБУЛО | AB18: ІІІ.ФОНДИ: НАДІЙШЛО, ВИБУЛО | AC18: ІІІ.ФОНДИ: НАДІЙШЛО, ВИБУЛО | AD18: ІІІ.ФОНДИ: НАДІЙШЛО, ВИБУЛО | AE18: ІІІ.ФОНДИ: НАДІЙШЛО, ВИБУЛО | AF18: ІІІ.ФОНДИ: НАДІЙШЛО, ВИБУЛО | AG18: ІІІ.ФОНДИ: НАДІЙШЛО, ВИБУЛО | AH18: ІІІ.ФОНДИ: НАДІЙШЛО, ВИБУЛО | AI18: ІІІ.ФОНДИ: НАДІЙШЛО, ВИБУЛО | AJ18: ІІІ.ФОНДИ: НАДІЙШЛО, ВИБУЛО | AK18: ІІІ.ФОНДИ: НАДІЙШЛО, ВИБУЛО
A19: Надійшло документів до бібліотечного фонду | B19: у т. ч. за видами | C19: у т. ч. за видами | D19: у т. ч. за видами | E19: у т. ч. за видами | F19: у т. ч. за видами | G19: у т. ч. за мовами | H19: у т. ч. за мовами | I19: у т. ч. за мовами | J19: у т. ч. за мовами | K19: За джерелами комплектування | L19: За джерелами комплектування | M19: За джерелами комплектування | N19: За джерелами комплектування | O19: Вибуло документів з бібліотечного фонду | P19: у т. ч. за видами | Q19: у т. ч. за видами | R19: у т. ч. за видами | S19: у т. ч. за видами | T19: у т. ч. за видами | U19: у т. ч. за мовами | V19: у т. ч. за мовами | W19: у т. ч. за мовами | X19: у т. ч. за мовами | Y19: Фонд на кінець звітного року | Z19: у т. ч. за видами | AA19: у т. ч. за видами | AB19: у т. ч. за видами | AC19: у т. ч. за видами | AD19: у т. ч. за видами | AE19: у т. ч. за мовами | AF19: у т. ч. за мовами | AG19: у т. ч. за мовами | AH19: у т. ч. за мовами | AI19: Фонд рідкісних та цінних книг | AJ19: Кількість книжкових пам'яток | AK19: Кількість колекцій
A20: Надійшло документів до бібліотечного фонду | B20: книги | C20: періодичні видання | D20: аудіовізуальні матеріали | E20: електронні видання | F20: інші | G20: українською | H20: російською | I20: мовами нацменшин | J20: іноземними | K20: документів за Державними, місцевими програмами | L20: придбано документів | M20: обов'язковий примірник | N20: інші джерела | O20: Вибуло документів з бібліотечного фонду | P20: книги | Q20: періодичні видання | R20: аудіовізуальні матеріали | S20: електронні видання | T20: інші | U20: українською | V20: російською | W20: мовами нацменшин | X20: іноземними | Y20: Фонд на кінець звітного року | Z20: книги | AA20: періодичні видання | AB20: аудіовізуальні матеріали | AC20: електронні видання | AD20: інші | AE20: українською | AF20: російською | AG20: мовами нацменшин | AH20: іноземними | AI20: Фонд рідкісних та цінних книг | AJ20: Кількість книжкових пам'яток | AK20: Кількість колекцій
A21: 1 | B21: 2 | C21: 3 | D21: 4 | E21: 5 | F21: 6 | G21: 7 | H21: 8 | I21: 9 | J21: 10 | K21: 11 | L21: 12 | M21: 13 | N21: 14 | O21: 15 | P21: 16 | Q21: 17 | R21: 18 | S21: 19 | T21: 20 | U21: 21 | V21: 22 | W21: 23 | X21: 24 | Y21: 25 | Z21: 26 | AA21: 27 | AB21: 28 | AC21: 29 | AD21: 30 | AE21: 31 | AF21: 32 | AG21: 33 | AH21: 34 | AI21: 35 | AJ21: 36 | AK21: 37
A22: 2445 | B22: 2247 | C22: 181 | D22: 0 | E22: 17 | F22: 0 | G22: 2292 | H22: 135 | I22: 0 | J22: 18 | K22: 930 | L22: 0 | M22: 20 | N22: 1495 | O22: 1010 | P22: 0 | Q22: 1010 | R22: 0 | S22: 0 | T22: 0 | U22: 751 | V22: 202 | W22: 0 | X22: 57 | Y22: 10958 | Z22: 10277 | AA22: 661 | AB22: 0 | AC22: 20 | AD22: 0 | AE22: 9097 | AF22: 1479 | AG22: 0 | AH22: 382 | AI22: 0 | AJ22: 0 | AK22: 0
A25: IV. ВИДАЧА | B25: IV. ВИДАЧА | C25: IV. ВИДАЧА | D25: IV. ВИДАЧА | E25: IV. ВИДАЧА | F25: IV. ВИДАЧА | G25: IV. ВИДАЧА | H25: IV. ВИДАЧА | I25: IV. ВИДАЧА | J25: IV. ВИДАЧА | K25: IV. ВИДАЧА | L25: IV. ВИДАЧА | M25: IV. ВИДАЧА | N25: IV. ВИДАЧА | O25: IV. ВИДАЧА | P25: IV. ВИДАЧА | Q25: IV. ВИДАЧА | R25: IV. ВИДАЧА | S25: IV. ВИДАЧА | T25: IV. ВИДАЧА
A26: Видача документів (усього) | B26: у т. ч. за видами видань | C26: у т. ч. за видами видань | D26: у т. ч. за видами видань | E26: у т. ч. за видами видань | F26: у т. ч. за видами видань | G26: у т. ч. за мовами | H26: у т. ч. за мовами | I26: у т. ч. за мовами | J26: у т. ч. за мовами | K26: у т. ч. видано примірників дітям до 15 років | L26: у т. ч. видано примірників дітям до 15 років | M26: у т. ч. видано примірників дітям до 15 років | N26: у т. ч. видано примірників дітям до 15 років | O26: у т. ч. видано примірників дітям до 15 років | P26: у т. ч. видано примірників дітям до 15 років | Q26: у т. ч. видано примірників дітям до 15 років | R26: у т. ч. видано примірників дітям до 15 років | S26: у т. ч. видано примірників дітям до 15 років | T26: у т. ч. видано примірників дітям до 15 років
A27: Видача документів (усього) | B27: книги | C27: періодичні видання | D27: аудіовізуальні матеріали | E27: електронні видання | F27: інші | G27: українською | H27: російською | I27: мовами нацменшин | J27: іноземними | K27: Усього | L27: у т. ч. за видами | M27: у т. ч. за видами | N27: у т. ч. за видами | O27: у т. ч. за видами | P27: у т. ч. за видами | Q27: у т. ч. за мовами | R27: у т. ч. за мовами | S27: у т. ч. за мовами | T27: у т. ч. за мовами
A28: Видача документів (усього) | B28: книги | C28: періодичні видання | D28: аудіовізуальні матеріали | E28: електронні видання | F28: інші | G28: українською | H28: російською | I28: мовами нацменшин | J28: іноземними | K28: Усього | L28: книги | M28: періодичні видання | N28: аудіовізуальні матеріали | O28: електронні видання | P28: інші | Q28: українською | R28: російською | S28: мовами нацменшин | T28: іноземними
A29: 1 | B29: 2 | C29: 3 | D29: 4 | E29: 5 | F29: 6 | G29: 7 | H29: 8 | I29: 9 | J29: 10 | K29: 11 | L29: 12 | M29: 13 | N29: 14 | O29: 15 | P29: 16 | Q29: 17 | R29: 18 | S29: 19 | T29: 20
A30: 34174 | B30: 26591 | C30: 7583 | D30: 0 | E30: 0 | F30: 0 | G30: 26541 | H30: 4233 | I30: 0 | J30: 3400 | K30: 13693 | L30: 10689 | M30: 3004 | N30: 0 | O30: 0 | P30: 0 | Q30: 10625 | R30: 1720 | S30: 0 | T30: 1348
A33: V. EЛЕКТРОННІ РЕСУРСИ | B33: V. EЛЕКТРОННІ РЕСУРСИ | C33: V. EЛЕКТРОННІ РЕСУРСИ | D33: V. EЛЕКТРОННІ РЕСУРСИ | E33: V. EЛЕКТРОННІ РЕСУРСИ | F33: V. EЛЕКТРОННІ РЕСУРСИ | G33: V. EЛЕКТРОННІ РЕСУРСИ | H33: V. EЛЕКТРОННІ РЕСУРСИ | I33: V. EЛЕКТРОННІ РЕСУРСИ | J33: V. EЛЕКТРОННІ РЕСУРСИ | K33: V. EЛЕКТРОННІ РЕСУРСИ
A34: Кількість власних веб-сайтів | B34: Інтернет-адреси власних веб-сайтів | C34: Кількість звернень до власних веб-сайтів | D34: Кількість блогів, сторінок у соціальних мережах | E34: Обсяг ЕК | F34: Кількість власних Баз даних | G34: Обсяг власних БД | H34: Обсяг електронної (цифрової) бібліотеки | I34: з них документів, доступ до яких можливий через мережу Інтернет | J34: Кількість віддалених ліцензованих ресурсів | K34: Кількість звернень до віддалених ліцензованих ресурсів
A35: 1 | B35: 2 | C35: 3 | D35: 4 | E35: 5 | F35: 6 | G35: 7 | H35: 8 | I35: 9 | J35: 10 | K35: 11
A36: 1 | B36: 0 | C36: 13220 | D36: 3 | E36: 14661 | F36: 1 | G36: 14661 | H36: 20 | I36: 0 | J36: 0 | K36: 0
A39: VI. ДОВІДКОВО-ІНФОРМАЦІЙНЕ ОБСЛУГОВУВАННЯ. МІЖБІБЛІОТЕЧНИЙ АБОНЕМЕНТ | B39: VI. ДОВІДКОВО-ІНФОРМАЦІЙНЕ ОБСЛУГОВУВАННЯ. МІЖБІБЛІОТЕЧНИЙ АБОНЕМЕНТ | C39: VI. ДОВІДКОВО-ІНФОРМАЦІЙНЕ ОБСЛУГОВУВАННЯ. МІЖБІБЛІОТЕЧНИЙ АБОНЕМЕНТ | D39: VI. ДОВІДКОВО-ІНФОРМАЦІЙНЕ ОБСЛУГОВУВАННЯ. МІЖБІБЛІОТЕЧНИЙ АБОНЕМЕНТ | E39: VI. ДОВІДКОВО-ІНФОРМАЦІЙНЕ ОБСЛУГОВУВАННЯ. МІЖБІБЛІОТЕЧНИЙ АБОНЕМЕНТ
A40: Кількість виконаних довідок | B40: у т. ч. віртуальних | C40: Кількість абонентів МБА, ММБА | D40: Кількість виданих документів іншим бібліотекам через МБА, ММБА | E40: Кількість отриманих документів з інших бібліотек
A41: 1 | B41: 2 | C41: 3 | D41: 4 | E41: 5
A42: 5653 | B42: 155 | C42: 12 | D42: 408 | E42: 7
A45: VII. ПЕРСОНАЛ БІБЛІОТЕКИ | B45: VII. ПЕРСОНАЛ БІБЛІОТЕКИ | C45: VII. ПЕРСОНАЛ БІБЛІОТЕКИ | D45: VII. ПЕРСОНАЛ БІБЛІОТЕКИ | E45: VII. ПЕРСОНАЛ БІБЛІОТЕКИ | F45: VII. ПЕРСОНАЛ БІБЛІОТЕКИ | G45: VII. ПЕРСОНАЛ БІБЛІОТЕКИ | H45: VII. ПЕРСОНАЛ БІБЛІОТЕКИ | I45: VII. ПЕРСОНАЛ БІБЛІОТЕКИ | J45: VII. ПЕРСОНАЛ БІБЛІОТЕКИ | K45: VII. ПЕРСОНАЛ БІБЛІОТЕКИ | L45: VII. ПЕРСОНАЛ БІБЛІОТЕКИ | M45: VII. ПЕРСОНАЛ БІБЛІОТЕКИ | N45: VII. ПЕРСОНАЛ БІБЛІОТЕКИ | O45: VII. ПЕРСОНАЛ БІБЛІОТЕКИ | P45: VII. ПЕРСОНАЛ БІБЛІОТЕКИ | Q45: VII. ПЕРСОНАЛ БІБЛІОТЕКИ | R45: VII. ПЕРСОНАЛ БІБЛІОТЕКИ | S45: VII. ПЕРСОНАЛ БІБЛІОТЕКИ
A46: Загальна кількість працівників | B46: Кількість бібліотечних фахівців | C46: з них мають освіту | D46: з них мають освіту | E46: з них мають освіту | F46: з них мають освіту | G46: Кількість бібліотечних фахівців, які мають стаж бібліотечної роботи | H46: Кількість бібліотечних фахівців, які мають стаж бібліотечної роботи | I46: Кількість бібліотечних фахівців, які мають стаж бібліотечної роботи | J46: Кількість бібліотечних фахівців, які мають стаж бібліотечної роботи | K46: Віковий склад кадрів | L46: Віковий склад кадрів | M46: Віковий склад кадрів | N46: Віковий склад кадрів | O46: Із загальної кількості бібліотечних фахівців працюють | P46: Із загальної кількості бібліотечних фахівців працюють | Q46: Кількість бібліотечних фахівців, які підвищили свою кваліфікацію (протягом року) | R46: Загальна кількість навчань з ІТ для бібліотекарів | S46: Кількість бібліотекарів, для яких організовано навчання у тренінгових центрах
A47: Загальна кількість працівників | B47: Кількість бібліотечних фахівців | C47: повну вищу | D47: у т. ч. спеціальну | E47: базову вищу | F47: у т. ч. спеціальну | G47: до 3 років | H47: понад 3 роки | I47: понад 10 років | J47: понад 20 років | K47: до 30 років | L47: від 30 до 45 років | M47: від 45 до 60 років | N47: від 60 років | O47: повний робочий день | P47: неповний робочий день | Q47: Кількість бібліотечних фахівців, які підвищили свою кваліфікацію (протягом року) | R47: Загальна кількість навчань з ІТ для бібліотекарів | S47: Кількість бібліотекарів, для яких організовано навчання у тренінгових центрах
A48: 1 | B48: 2 | C48: 3 | D48: 4 | E48: 5 | F48: 6 | G48: 7 | H48: 8 | I48: 9 | J48: 10 | K48: 11 | L48: 12 | M48: 13 | N48: 14 | O48: 15 | P48: 16 | Q48: 17 | R48: 18 | S48: 19
A49: 30 | B49: 20 | C49: 14 | D49: 9 | E49: 4 | F49: 3 | G49: 6 | H49: 8 | I49: 2 | J49: 4 | K49: 11 | L49: 3 | M49: 5 | N49: 1 | O49: 19 | P49: 1 | Q49: 17 | R49: 0 | S49: 0
A52: VIII. ФІНАНСУВАННЯ | B52: VIII. ФІНАНСУВАННЯ | C52: VIII. ФІНАНСУВАННЯ | D52: VIII. ФІНАНСУВАННЯ | E52: VIII. ФІНАНСУВАННЯ | F52: VIII. ФІНАНСУВАННЯ | G52: VIII. ФІНАНСУВАННЯ | H52: VIII. ФІНАНСУВАННЯ | I52: VIII. ФІНАНСУВАННЯ | J52: VIII. ФІНАНСУВАННЯ | K52: VIII. ФІНАНСУВАННЯ | L52: VIII. ФІНАНСУВАННЯ | M52: VIII. ФІНАНСУВАННЯ | N52: VIII. ФІНАНСУВАННЯ | O52: VIII. ФІНАНСУВАННЯ | P52: VIII. ФІНАНСУВАННЯ | Q52: VIII. ФІНАНСУВАННЯ | R52: VIII. ФІНАНСУВАННЯ | S52: VIII. ФІНАНСУВАННЯ | T52: VIII. ФІНАНСУВАННЯ
A53: Загальна сума надходжень коштів за рік | B53: Кошти загального фонду | C53: Кошти загального фонду | D53: Кошти загального фонду | E53: Кошти загального фонду | F53: Кошти загального фонду | G53: Кошти загального фонду | H53: Кошти спеціального фонду | I53: Кошти спеціального фонду | J53: Кошти спеціального фонду | K53: Кошти спеціального фонду | L53: Викорис- тання коштів, усього | M53: з них | N53: з них | O53: з них | P53: з них | Q53: з них | R53: з них | S53: з них | T53: Залишок коштів спеціаль ного фонду на кінець року
A54: Загальна сума надходжень коштів за рік | B54: усього | C54: з них | D54: з них | E54: з них | F54: з них | G54: з них | H54: усього | I54: з них | J54: з них | K54: з них | L54: Викорис- тання коштів, усього | M54: на оплату праці | N54: на комплектування фонду | O54: у т. ч. за рахунок коштів загального фонду | P54: на поточний і капітальний ремонти | Q54: у т. ч. за рахунок коштів загального фонду | R54: на придбання основних засобів | S54: у т. ч. за рахунок коштів загального фонду | T54: Залишок коштів спеціаль ного фонду на кінець року
A55: Загальна сума надходжень коштів за рік | B55: усього | C55: на оплату праці | D55: на комплектування | E55: у т. ч. на періодичні видання | F55: на поточний і капітальний ремонти | G55: на придбання основних засобів | H55: усього | I55: надання платних послуг | J55: благодійні, спонсорські внески | K55: інші джерела | L55: Викорис- тання коштів, усього | M55: на оплату праці | N55: на комплектування фонду | O55: у т. ч. за рахунок коштів загального фонду | P55: на поточний і капітальний ремонти | Q55: у т. ч. за рахунок коштів загального фонду | R55: на придбання основних засобів | S55: у т. ч. за рахунок коштів загального фонду | T55: Залишок коштів спеціаль ного фонду на кінець року
A56: 1 | B56: 2 | C56: 3 | D56: 4 | E56: 5 | F56: 6 | G56: 7 | H56: 8 | I56: 9 | J56: 10 | K56: 11 | L56: 12 | M56: 13 | N56: 14 | O56: 15 | P56: 16 | Q56: 17 | R56: 18 | S56: 19 | T56: 20
A57: 3928747 | B57: 3643277 | C57: 2678805 | D57: 0 | E57: 0 | F57: 0 | G57: 0 | H57: 285470 | I57: 7763 | J57: 264778 | K57: 12929 | L57: 3924285 | M57: 2678805 | N57: 277707 | O57: 0 | P57: 0 | Q57: 0 | R57: 0 | S57: 0 | T57: 4462

Sheet 6-НК_тис
B2: Звіт про діяльність державних, публічних бібліотек, централізованих бібліотечних систем (ЦБС), що віднесені до сфери управління Міністерства культури і туризму України
B4: Подають: | N4: Термін подання
B5: Бібліотеки централізованої бібліотечної системи - ЦРБ, бібліотеки, що не входять до складу ЦБС - відділам культури і туризму районних державних адміністрацій | N5: до 20 січня | P5: Форма № 6-НК
B7: Відділи культури і туризму районних державних адміністрацій зведену інформацію по | N7: до 1 лютого
B8: району (місту) – Міністерству культури і мистецтв Автономної Республіки Крим, | P8: ЗАТВЕРДЖЕНО
B9: Головному управлінню культури і мистецтв Київської міської державної адміністрації, | P9: Наказ Міністерства
B10: управлінню культури і туризму обласних та Севастопольської міської державних адміністрацій | P10: культури і туризму України
B11: Республіканські, обласні бібліотеки, центральні міські бібліотеки міст Києва та Севастополя – Міністерству культури і мистецтв Автономної Республіки Крим, Головному управлінню культури і мистецтв Київської міської державної адміністрації, управлінню культури і туризму обласних та Севастопольської міської державних адміністрацій | N11: до 1 лютого | P11: 5 грудня 2007 №75
B12: Національні, державні бібліотеки, Міністерство культури і мистецтв Автономної Республіки Крим, Головне управління культури і мистецтв Київської міської державної адміністрації, управління культури і туризму обласних та Севастопольської міської державних адміністрацій зведену інформацію по регіонах – Міністерству культури і туризму України та головним управлінням статистики в Автономній Республіці Крим, областях, місті Києві та Управлінню статистики в місті Севастополі | N12: до 10 лютого | P12: за погодженням з Держкомстатом України
B13: Міністерство культури і туризму України зведену інформацію про заклади системи Міністерства культури і туризму України та по регіонах – Державному комітету статистики України | N13: до 15 березня
B15: Респондент :
B16: Найменування Луганська ОУНБ
B17: Місцезнаходження: Луганська обл., м. Старобільськ, кв. Дружби, 1-а
B20: 2
C21: Продовження форми № 6-НК
B23: І. МАТЕРІАЛЬНО-ТЕХНІЧНА БАЗА
B25: Код рядка | C25: Загальна площа приміщень бібліотеки (кв. м.) | D25: У т. ч. | F25: Кількість пунктів бібліотечного обслуговування (од.) | G25: Кількість місць | H25: Характеристика приміщення бібліотеки (од.) | L25: Кількість технічних засобів (од.) | O25: Засоби зв’язку | S25: Кількість транспортних засобів
H26: майнова | J26: технічна | L26: оргтехніка | N26: мультимедійне обладнання | O26: кількість телефонних номерів | P26: кількість факсів | Q26: кількість електронних адрес | R26: кількість комп’ютерів, які мають доступ до мережі Інтернету
D27: для зберігання фондів | E27: для обслуговування користувачів | H27: на праві оперативного управління | I27: орендоване | J27: потребує капітального ремонту | K27: аварійне | L27: комп’ютери | M27: копіювально-розмножувальна техніка
B29: А | C29: 1 | D29: 2 | E29: 3 | F29: 4 | G29: 5 | H29: 6 | I29: 7 | J29: 8 | K29: 9 | L29: 10 | M29: 11 | N29: 12 | O29: 13 | P29: 14 | Q29: 15 | R29: 16 | S29: 17
B30: 01 | C30: =Звіт!A8 -> 148 | D30: =Звіт!B8 -> 48 | E30: =Звіт!C8 -> 100 | F30: =Звіт!D8 -> 0 | G30: =Звіт!Q8 -> 80 | H30: =Звіт!F8 -> 0 | I30: =Звіт!G8 -> 1 | J30: =Звіт!H8 -> 0 | K30: =Звіт!I8 -> 0 | L30: =Звіт!U8 -> 18 | M30: =Звіт!Z8 -> 1 | N30: =Звіт!AA8 -> 5 | O30: =Звіт!R8 -> 0 | P30: =Звіт!S8 -> 0 | Q30: =Звіт!T8 -> 3 | R30: =Звіт!W8 -> 18 | S30: =Звіт!AC8 -> 0
B32: ІІ. КОРИСТУВАЧІ, ВІДВІДУВАННЯ, ЗВЕРНЕННЯ ДО БІБЛІОТЕКИ
B33: (тис. осіб з одним знаком після коми)
B35: Код рядка | C35: Кількість користувачів протягом року (усього) | F35: Кількість зареєстрованих користувачів, згідно з єдиною реєстраційною картотекою (протягом року) | I35: Кількість зареєстрованих користувачів за віком: | N35: Кількість відвідувань бібліотеки протягом року (усього) | P35: у т.ч. | R35: Кількість відвідувань масових заходів, організованих бібліотекою
I37: до 15 років | J37: у т.ч. до 7 років | K37: 15 – 17 років | L37: 18-21 рік | M37: від 22 років | P37: Кількість звернень на веб-сайт бібліотеки
B38: А | C38: 1 | F38: 2 | I38: 3 | J38: 4 | K38: 5 | L38: 6 | M38: 7 | N38: 8 | P38: 9 | R38: 10
B39: 01 | C39: =Звіт!B15/1000 -> 9.774 | F39: =Звіт!D15/1000 -> 2.795 | I39: =(Звіт!E15+Звіт!F15)/1000 -> 0.369 | J39: =Звіт!E15/1000 -> 0.019 | K39: 0.3 | L39: =Звіт!H15/1000 -> 0.568 | M39: =(Звіт!I15+Звіт!J15)/1000 -> 1.478 | N39: =Звіт!K15/1000 -> 100.883 | P39: =Звіт!C36/1000 -> 13.22 | R39: =Звіт!L15/1000 -> 5.66
B44: 3
B45: Продовження форми № 6-НК
B46: ІІІ. ФОРМУВАННЯ І ВИКОРИСТАННЯ БІБЛІОТЕЧНИХ ФОНДІВ
B47: (тис. примірників з двома знаками після коми)
B49: Назва | G49: Код рядка | H49: Усього документів бібліотечного фонду (сума гр. 2- 5) | J49: Із загальної кількості примірників
J50: за видами | N50: за мовами
J51: книги | K51: періодичні видання | L51: аудіовізуальні матеріали | M51: електронні видання | N51: українською | O51: російською | P51: мовами національних меншин | S51: іноземними мовами
B56: А | G56: Б | H56: 1 | J56: 2 | K56: 3 | L56: 4 | M56: 5 | N56: 6 | O56: 7 | P56: 8 | Q56: 9 | R56: 10 | S56: 11
B57: Надійшло примірників | G57: 01 | H57: =Звіт!A22/1000 -> 2.445 | J57: =Звіт!B22/1000 -> 2.247 | K57: =Звіт!C22/1000 -> 0.181 | L57: =Звіт!D22/1000 -> 0 | M57: =Звіт!E22/1000 -> 0.017 | N57: =Звіт!G22/1000 -> 2.292 | O57: =Звіт!H22/1000 -> 0.135 | P57: =Звіт!I22/1000 -> 0 | S57: =Звіт!J22/1000 -> 0.018
B58: Вибуло примірників | G58: 02 | H58: =Звіт!O22/1000 -> 1.01 | J58: =Звіт!P22/1000 -> 0 | K58: =Звіт!Q22/1000 -> 1.01 | L58: =Звіт!R22/1000 -> 0 | M58: =Звіт!S22/1000 -> 0 | N58: =Звіт!U22/1000 -> 0.751 | O58: =Звіт!V22/1000 -> 0.202 | P58: =Звіт!W22/1000 -> 0 | S58: =Звіт!X22/1000 -> 0.057
B59: На кінець звітного року (усього) | G59: 03 | H59: =Звіт!Y22/1000 -> 10.958 | J59: =Звіт!Z22/1000 -> 10.277 | K59: =Звіт!AA22/1000 -> 0.661 | L59: =Звіт!AB22/1000 -> 0 | M59: =Звіт!AC22/1000 -> 0.02 | N59: =Звіт!AE22/1000 -> 9.097 | O59: =Звіт!AF22/1000 -> 1.479 | P59: =Звіт!AG22/1000 -> 0 | S59: =Звіт!AH22/1000 -> 0.382
B60: Видано примірників (усього) | G60: 04 | H60: =Звіт!A30/1000 -> 34.174 | J60: =Звіт!B30/1000 -> 26.591 | K60: =Звіт!C30/1000 -> 7.583 | L60: =Звіт!D30/1000 -> 0 | M60: =Звіт!E30/1000 -> 0 | N60: =Звіт!G30/1000 -> 26.541 | O60: =Звіт!H30/1000 -> 4.233 | P60: =Звіт!I30/1000 -> 0 | S60: =Звіт!J30/1000 -> 3.4
B61: з них дітям до 15 років | G61: 05 | H61: =Звіт!K30/1000 -> 13.693 | J61: =Звіт!L30/1000 -> 10.689 | K61: =Звіт!M30/1000 -> 3.004 | L61: =Звіт!N30/1000 -> 0 | M61: =Звіт!O30/1000 -> 0 | N61: =Звіт!Q30/1000 -> 10.625 | O61: =Звіт!R30/1000 -> 1.72 | P61: =Звіт!S30/1000 -> 0 | S61: 1.34
B69: 4
B70: Продовження форми № 6-НК
B71: ІV. ЕЛЕКТРОННІ РЕСУРСИ.
B72: ДОВІДКОВО-ІНФОРМАЦІЙНЕ ОБСЛУГОВУВАННЯ. МІЖБІБЛІОТЕЧНИЙ АБОНЕМЕНТ
B74: Електронні ресурси | H74: Інформаційне обслуговування | N74: Міжбібліотечний абонемент
B75: Код рядка | C75: обсяг власних електронних баз даних (тис. записів) | F75: з них записів у електронному каталозі | H75: Загальна кількість користувачів (усього осіб) | J75: з них індивідуальних | L75: Загальна кількість звернень | N75: кількість користувачів міжбібліотечного абонементу | P75: кількість виданих документів іншим бібліотекам | R75: кількість отриманих документів з інших бібліотек
B76: А | C76: 1 | F76: 2 | H76: 3 | J76: 4 | L76: 5 | N76: 6 | P76: 7 | R76: 8
B77: 01 | C77: =Звіт!G36/1000 -> 14.661 | F77: =Звіт!E36/1000 -> 14.661 | H77: 4511 | J77: 36 | L77: 5653 | N77: =Звіт!C42 -> 12 | P77: =Звіт!D42 -> 408 | R77: =Звіт!E42 -> 7
B79: V. ПЕРСОНАЛ БІБЛІОТЕКИ
B80: Код рядка | C80: Загальна кількість працівників (осіб) | F80: Кількість працівників бібліотеки | H80: 3 них мають освіту: | L80: Кількість працівників бібліотек, які мають стаж бібліотечної роботи | P80: Із загальної кількості працівників бібліотек (гр. 2) працюють
H81: повну вищу | I81: у т. ч. вищу спеціальну | J81: базову вищу | K81: у т. ч. спеціальну | L81: до 3 років | M81: 3-9 років | N81: 10 – 20 років | O81: понад 20 років | P81: повний робочий день | R81: неповний робочий день
B83: А | C83: 1 | F83: 2 | H83: 3 | I83: 4 | J83: 5 | K83: 6 | L83: 7 | M83: 8 | N83: 9 | O83: 10 | P83: 11 | R83: 12
B84: 01 | C84: =Звіт!A49 -> 30 | F84: =Звіт!B49 -> 20 | H84: =Звіт!C49 -> 14 | I84: =Звіт!D49 -> 9 | J84: =Звіт!E49 -> 4 | K84: =Звіт!F49 -> 3 | L84: =Звіт!G49 -> 6 | M84: =Звіт!H49 -> 8 | N84: =Звіт!I49 -> 2 | O84: =Звіт!J49 -> 4 | P84: =Звіт!O49 -> 19 | R84: =Звіт!P49 -> 1
B88: 5
B89: Продовження форми № 6-НК
B90: VІ. НАДХОДЖЕННЯ ТА ВИКОРИСТАННЯ КОШТІВ
B91: (тис. грн. з одним знаком після коми)
B92: Код рядка | C92: Загальна сума надходжень за рік (гр..2,7) | E92: у т.ч.
E93: кошти загального фонду | O93: кошти спеціального фонду
E94: усього | G94: з них: | O94: усього | Q94: з них:
G95: на оплату праці | I95: на комплек-тування фондів | K95: на поточний і капітальний ремонти | M95: на придбання основних засобів | Q95: надання платних послуг | R95: благодійні, спонсорські внески | S95: інші джерела
B96: А | C96: 1 | E96: 2 | G96: 3 | I96: 4 | K96: 5 | M96: 6 | O96: 7 | Q96: 8 | R96: 9 | S96: 10
B97: 01 | C97: 3928.8 | E97: =Звіт!B57/1000 -> 3643.277 | G97: =Звіт!C57/1000 -> 2678.805 | I97: =Звіт!D57/1000 -> 0 | K97: =Звіт!F57/1000 -> 0 | M97: =Звіт!G57/1000 -> 0 | O97: =Звіт!H57/1000 -> 285.47 | Q97: =Звіт!I57/1000 -> 7.763 | R97: =Звіт!J57/1000 -> 264.778 | S97: =Звіт!K57/1000 -> 12.929
B99: Використання коштів (тис. грн.) | D99: з них: | R99: Залишок коштів спеціального фонду на кінець року, (тис. грн.)
D100: на оплату праці | F100: на комплектування фонду | H100: у т.ч.: за рахунок коштів загального фонду | J100: на поточний і капітальний ремонти | L100: у т.ч.: за рахунок коштів загального фонду | N100: на придбання основних засобів | P100: у т.ч.: за рахунок коштів загального фонду
B101: 11 | D101: 12 | F101: 13 | H101: 14 | J101: 15 | L101: 16 | N101: 17 | P101: 18 | R101: 19
B102: =Звіт!L57/1000 -> 3924.285 | D102: =Звіт!M57/1000 -> 2678.805 | F102: =Звіт!N57/1000 -> 277.707 | H102: =Звіт!Q57/1000 -> 0 | J102: =Звіт!P57/1000 -> 0 | L102: =Звіт!Q57/1000 -> 0 | N102: =Звіт!R57/1000 -> 0 | P102: =Звіт!S57/1000 -> 0 | R102: =Звіт!T57/1000 -> 4.462
B104: * Розділ VІ не заповнюють бібліотеки-філії ЦБС
B105: Керівник____Моісєєва С.А.______(П.І.Б.) | P105: Підпис
B106: Виконавець __Букреєва О.О._____(П.І.Б) | P106: (дата складання документа)
B107: М.П.

Sheet 6-НК_абс (hidden)
B2: Звіт про діяльність державних, публічних бібліотек, централізованих бібліотечних систем (ЦБС), що віднесені до сфери управління Міністерства культури і туризму України
B4: Подають: | N4: Термін подання
B5: Бібліотеки централізованої бібліотечної системи - ЦРБ, бібліотеки, що не входять до складу ЦБС - відділам культури і туризму районних державних адміністрацій | N5: до 20 січня | P5: Форма № 6-НК
B7: Відділи культури і туризму районних державних адміністрацій зведену інформацію по | N7: до 1 лютого
B8: району (місту) – Міністерству культури і мистецтв Автономної Республіки Крим, | P8: ЗАТВЕРДЖЕНО
B9: Головному управлінню культури і мистецтв Київської міської державної адміністрації, | P9: Наказ Міністерства
B10: управлінню культури і туризму обласних та Севастопольської міської державних адміністрацій | P10: культури і туризму України
B11: Республіканські, обласні бібліотеки, центральні міські бібліотеки міст Києва та Севастополя – Міністерству культури і мистецтв Автономної Республіки Крим, Головному управлінню культури і мистецтв Київської міської державної адміністрації, управлінню культури і туризму обласних та Севастопольської міської державних адміністрацій | N11: до 1 лютого | P11: 5 грудня 2007 №75
B12: Національні, державні бібліотеки, Міністерство культури і мистецтв Автономної Республіки Крим, Головне управління культури і мистецтв Київської міської державної адміністрації, управління культури і туризму обласних та Севастопольської міської державних адміністрацій зведену інформацію по регіонах – Міністерству культури і туризму України та головним управлінням статистики в Автономній Республіці Крим, областях, місті Києві та Управлінню статистики в місті Севастополі | N12: до 10 лютого | P12: за погодженням з Держкомстатом України
B13: Міністерство культури і туризму України зведену інформацію про заклади системи Міністерства культури і туризму України та по регіонах – Державному комітету статистики України | N13: до 15 березня
B15: Респондент :
B16: Найменування МІНІСТЕРСТВО КУЛЬТУРИ І ТУРИЗМУ УКРАЇНИ
B17: Місцезнаходження: м. Київ, вул.І.Франка, 19
B20: 2
C21: Продовження форми № 6-НК
B23: І. МАТЕРІАЛЬНО-ТЕХНІЧНА БАЗА
B25: Код рядка | C25: Загальна площа приміщень бібліотеки (кв. м.) | D25: У т. ч. | F25: Кількість пунктів бібліотечного обслуговування (од.) | G25: Кількість місць | H25: Характеристика приміщення бібліотеки (од.) | L25: Кількість технічних засобів (од.) | O25: Засоби зв’язку | S25: Кількість транспортних засобів
H26: майнова | J26: технічна | L26: оргтехніка | N26: мультимедійне обладнання | O26: кількість телефонних номерів | P26: кількість факсів | Q26: кількість електронних адрес | R26: кількість комп’ютерів, які мають доступ до мережі Інтернету
D27: для зберігання фондів | E27: для обслуговування користувачів | H27: на праві оперативного управління | I27: орендоване | J27: потребує капітального ремонту | K27: аварійне | L27: комп’ютери | M27: копіювально-розмножувальна техніка
B29: А | C29: 1 | D29: 2 | E29: 3 | F29: 4 | G29: 5 | H29: 6 | I29: 7 | J29: 8 | K29: 9 | L29: 10 | M29: 11 | N29: 12 | O29: 13 | P29: 14 | Q29: 15 | R29: 16 | S29: 17
B30: 01 | C30: =#REF! ->  | D30: =#REF! ->  | E30: =#REF! ->  | F30: =#REF! ->  | G30: =#REF! ->  | H30: =#REF! ->  | I30: =#REF! ->  | J30: =#REF! ->  | K30: =#REF! ->  | L30: =#REF! ->  | M30: =#REF! ->  | N30: =#REF! ->  | O30: =#REF! ->  | P30: =#REF! ->  | Q30: =#REF! ->  | R30: =#REF! ->  | S30: =#REF! -> 
B32: ІІ. КОРИСТУВАЧІ, ВІДВІДУВАННЯ, ЗВЕРНЕННЯ ДО БІБЛІОТЕКИ
B35: Код рядка | C35: Кількість користувачів протягом року (усього) | F35: Кількість зареєстрованих користувачів, згідно з єдиною реєстраційною картотекою (протягом року) | I35: Кількість зареєстрованих користувачів за віком: | N35: Кількість відвідувань бібліотеки протягом року (усього) | P35: у т.ч. | R35: Кількість відвідувань масових заходів, організованих бібліотекою
I37: до 15 років | J37: у т.ч. до 7 років | K37: 15 – 17 років | L37: 18-21 рік | M37: від 22 років | P37: Кількість звернень на веб-сайт бібліотеки
B38: А | C38: 1 | F38: 2 | I38: 3 | J38: 4 | K38: 5 | L38: 6 | M38: 7 | N38: 8 | P38: 9 | R38: 10
B39: 01 | C39: =#REF! ->  | F39: =#REF! ->  | I39: =#REF!+#REF! ->  | J39: =#REF! ->  | K39: =#REF! ->  | L39: =#REF! ->  | M39: =#REF!+#REF! ->  | N39: =#REF! ->  | P39: =#REF! ->  | R39: =#REF! -> 
B44: 3
B45: Продовження форми № 6-НК
B46: ІІІ. ФОРМУВАННЯ І ВИКОРИСТАННЯ БІБЛІОТЕЧНИХ ФОНДІВ
B49: Назва | G49: Код рядка | H49: Усього документів бібліотечного фонду (сума гр. 2- 5) | J49: Із загальної кількості примірників
J50: за видами | N50: за мовами
J51: книги | K51: періодичні видання | L51: аудіовізуальні матеріали | M51: електронні видання | N51: українською | O51: російською | P51: мовами національних меншин | S51: іноземними мовами
B56: А | G56: Б | H56: 1 | J56: 2 | K56: 3 | L56: 4 | M56: 5 | N56: 6 | O56: 7 | P56: 8 | Q56: 9 | R56: 10 | S56: 11
B57: Надійшло примірників | G57: 01 | H57: =#REF! ->  | J57: =#REF! ->  | K57: =#REF! ->  | L57: =#REF! ->  | M57: =#REF! ->  | N57: =#REF! ->  | O57: =#REF! ->  | P57: =#REF! ->  | S57: =#REF! -> 
B58: Вибуло примірників | G58: 02 | H58: =#REF! ->  | J58: =#REF! ->  | K58: =#REF! ->  | L58: =#REF! ->  | M58: =#REF! ->  | N58: =#REF! ->  | O58: =#REF! ->  | P58: =#REF! ->  | S58: =#REF! -> 
B59: На кінець звітного року (усього) | G59: 03 | H59: =#REF! ->  | J59: =#REF! ->  | K59: =#REF! ->  | L59: =#REF! ->  | M59: =#REF! ->  | N59: =#REF! ->  | O59: =#REF! ->  | P59: =#REF! ->  | S59: =#REF! -> 
B60: Видано примірників (усього) | G60: 04 | H60: =#REF! ->  | J60: =#REF! ->  | K60: =#REF! ->  | L60: =#REF! ->  | M60: =#REF! ->  | N60: =#REF! ->  | O60: =#REF! ->  | P60: =#REF! ->  | S60: =#REF! -> 
B61: з них дітям до 15 років | G61: 05 | H61: =#REF! ->  | J61: =#REF! ->  | K61: =#REF! ->  | L61: =#REF! ->  | M61: =#REF! ->  | N61: =#REF! ->  | O61: =#REF! ->  | P61: =#REF! ->  | S61: =#REF! -> 
B69: 4
B70: Продовження форми № 6-НК
B71: ІV. ЕЛЕКТРОННІ РЕСУРСИ.
B72: ДОВІДКОВО-ІНФОРМАЦІЙНЕ ОБСЛУГОВУВАННЯ. МІЖБІБЛІОТЕЧНИЙ АБОНЕМЕНТ
B74: Електронні ресурси | H74: Інформаційне обслуговування | N74: Міжбібліотечний абонемент
B75: Код рядка | C75: обсяг власних електронних баз даних | F75: з них записів у електронному каталозі | H75: Загальна кількість користувачів (усього осіб) | J75: з них індивідуальних | L75: Загальна кількість звернень | N75: кількість користувачів міжбібліотечного абонементу | P75: кількість виданих документів іншим бібліотекам | R75: кількість отриманих документів з інших бібліотек
B76: А | C76: 1 | F76: 2 | H76: 3 | J76: 4 | L76: 5 | N76: 6 | P76: 7 | R76: 8
B77: 01 | C77: =#REF! ->  | F77: =#REF! ->  | N77: =#REF! ->  | P77: =#REF! ->  | R77: =#REF! -> 
B79: V. ПЕРСОНАЛ БІБЛІОТЕКИ
B80: Код рядка | C80: Загальна кількість працівників (осіб) | F80: Кількість працівників бібліотеки | H80: 3 них мають освіту: | L80: Кількість працівників бібліотек, які мають стаж бібліотечної роботи | P80: Із загальної кількості працівників бібліотек (гр. 2) працюють
H81: повну вищу | I81: у т. ч. вищу спеціальну | J81: базову вищу | K81: у т. ч. спеціальну | L81: до 3 років | M81: 3-9 років | N81: 10 – 20 років | O81: понад 20 років | P81: повний робочий день | R81: неповний робочий день
B83: А | C83: 1 | F83: 2 | H83: 3 | I83: 4 | J83: 5 | K83: 6 | L83: 7 | M83: 8 | N83: 9 | O83: 10 | P83: 11 | R83: 12
B84: 01 | C84: =#REF! ->  | F84: =#REF! ->  | H84: =#REF! ->  | I84: =#REF! ->  | J84: =#REF! ->  | K84: =#REF! ->  | L84: =#REF! ->  | M84: =#REF! ->  | N84: =#REF! ->  | O84: =#REF! ->  | P84: =#REF! ->  | R84: =#REF! -> 
B88: 5
B89: Продовження форми № 6-НК
B90: VІ. НАДХОДЖЕННЯ ТА ВИКОРИСТАННЯ КОШТІВ
B92: Код рядка | C92: Загальна сума надходжень за рік (гр..2,7) | E92: у т.ч.
E93: кошти загального фонду | O93: кошти спеціального фонду
E94: усього | G94: з них: | O94: усього | Q94: з них:
G95: на оплату праці | I95: на комплек-тування фондів | K95: на поточний і капітальний ремонти | M95: на придбання основних засобів | Q95: надання платних послуг | R95: благодійні, спонсорські внески | S95: інші джерела
B96: А | C96: 1 | E96: 2 | G96: 3 | I96: 4 | K96: 5 | M96: 6 | O96: 7 | Q96: 8 | R96: 9 | S96: 10
B97: 01 | C97: =#REF! ->  | E97: =#REF! ->  | G97: =#REF! ->  | I97: =#REF! ->  | K97: =#REF! ->  | M97: =#REF! ->  | O97: =#REF! ->  | Q97: =#REF! ->  | R97: =#REF! ->  | S97: =#REF! -> 
B99: Використання коштів | D99: з них: | R99: Залишок коштів спеціального фонду на кінець року, (грн.)
D100: на оплату праці | F100: на комплектування фонду | H100: у т.ч.: за рахунок коштів загального фонду | J100: на поточний і капітальний ремонти | L100: у т.ч.: за рахунок коштів загального фонду | N100: на придбання основних засобів | P100: у т.ч.: за рахунок коштів загального фонду
B101: 11 | D101: 12 | F101: 13 | H101: 14 | J101: 15 | L101: 16 | N101: 17 | P101: 18 | R101: 19
B102: =#REF! ->  | D102: =#REF! ->  | F102: =#REF! ->  | H102: =#REF! ->  | J102: =#REF! ->  | L102: =#REF! ->  | N102: =#REF! ->  | P102: =#REF! ->  | R102: =#REF! -> 
B104: * Розділ VІ не заповнюють бібліотеки-філії ЦБС
B105: Керівник____________________________________(П.І.Б.) | P105: Підпис
B106: Виконавець __________________________________(П.І.Б) | P106: (дата складання документа)
B107: М.П.

Sheet 80-а-рвк_тис (hidden)
B2: Зведена звітність національних, державних, публічних та інших бібліотек
B4: Подають | J4: Термін подання
B5: Публічні, спеціалізовані, спеціальні та інші бібліотеки, які не належать до сфери управління Міністерства культури і туризму України – відділам культури і туризму районних державних адміністрацій | J5: до 20 січня | L5: Форма № 80-а-рвк (зведена річна)
B6: Бібліотеки навчальних закладів – відділам культури і туризму районних державних адміністрацій | J6: до 1 лютого
B7: Відділи культури і туризму районних державних адміністрацій - Міністерству культури і мистецтв Автономної Республіки Крим, Головному управлінню культури і мистецтв Київської міської державної адміністрації, управлінням культури і туризму обласних та Севастопольської міської державних адміністрацій | J7: до 10 лютого
B8: Республіканські, обласні, центральні міські бібліотеки міст Києва та Севастополя - Міністерству культури і мистецтв Автономної Республіки Крим, Головному управлінню культури і мистецтв Київської міської державної адміністрації, управлінням культури і туризму обласних та Севастопольської міської державних адміністрацій | J8: до 10 лютого | L8: ЗАТВЕРДЖЕНО Наказ Міністерства культури і туризму України
B9: Міністерство культури і мистецтв Автономної Республіки Крим, Головне управління культури і мистецтв Київської міської державної адміністрації, управління культури і туризму обласних та Севастопольської міської державних адміністрацій, зведена звітність - Міністерству культури і туризму України та головним управлінням статистики в Автономій Республіці Крим, областях, місті Києві та Управлінню статистики в місті Севастополі | J9: до 25 лютого | L9: 5 грудня 2007 №75 за погодженням з Держкомстатом України
B10: Міністерство культури і туризму України зведену інформацію по Україні та регіонах – Державному комітету статистики України | J10: до 30 березня
B12: Респондент:
B13: Найменування МІНІСТЕРСТВО КУЛЬТУРИ І ТУРИЗМУ УКРАЇНИ
B15: Місцезнаходження м. Київ, вул.І.Франка,19
B19: 2
B21: Продовження форми № 80-а-рвк
B23: Види бібліотек | F23: Код рядка | G23: Кількість бібліотек на кінець року (усього одиниць) | I23: З них
I24: потребують капітального ремонту | L24: знаходяться в аварійному стані
B25: А | F25: Б | G25: 1 | I25: 2 | L25: 3
B26: Публічні, спеціалізовані і спеціальні бібліотеки, незалежно від підпорядкування | F26: 01 | G26: =#REF! ->  | I26: =#REF! ->  | L26: =#REF! -> 
B27: Бібліотеки навчальних закладів – (усього) | F27: 02
B28: з них: загальноосвітніх навчальних закладів | F28: 03
B29: професійно–технічних навчальних закладів | F29: 04
B30: вищих навчальних закладів | F30: 05
B31: Республіканські, обласні, центральні міські бібліотеки міст Києва та Севастополя | F31: 06
B32: Із загальної кількості бібліотек –
B33: для дітей | F33: 07 | G33: =Дитячі!$G$1 -> 2 | I33: =Дитячі!$H$8 -> 34 | L33: =Дитячі!$I$8 -> 36
B34: для юнацтва | F34: 08 | G34: =Юнацькі!$G$1 -> 1 | I34: =Юнацькі!$H$8 -> 17 | L34: =Юнацькі!$I$8 -> 18
B35: Разом (сума рядків 01, 02, 06, 06). | F35: 09
B41: 3
B43: Продовження форми № 80-а-рвк
B45: Код рядка | C45: Бібліотечні фонди (тис. прим. з одним десятковим знаком) (усього на кінець року) | D45: за видами | G45: за мовами | N45: Надійшло документів за рік (тис. прим. з одним десятковим знаком)
D46: друковані | E46: аудіо­візуальні | F46: електронні | G46: українською | H46: російською | I46: Мовами національних меншин | L46: іншими мовами (указати)
B48: Б | C48: 4 | D48: 5 | E48: 6 | F48: 7 | G48: 8 | H48: 9 | I48: 10 | J48: 11 | K48: 12 | L48: 13 | M48: 14 | N48: 15
B49: 01 | C49: =#REF!/1000 ->  | D49: =(#REF!+#REF!)/1000 ->  | E49: =#REF!/1000 ->  | F49: =#REF!/1000 ->  | G49: =#REF!/1000 ->  | H49: =#REF!/1000 ->  | I49: =#REF!/1000 ->  | L49: =#REF!/1000 ->  | N49: =#REF!/1000 -> 
B50: 02
B51: 03
B52: 04
B53: 05
B54: 06
B55: 07 | C55: =Дитячі!$Y$22/1000 -> 0.188 | D55: =(Дитячі!$Z$22+Дитячі!$AA$22)/1000 -> 0.382 | E55: =Дитячі!$AB$22/1000 -> 0.194 | F55: =Дитячі!$AC$22/1000 -> 0.196 | G55: =Дитячі!$AE$22/1000 -> 0.2 | H55: =Дитячі!$AF$22/1000 -> 0.202 | I55: =Дитячі!$AG$22/1000 -> 0.204 | L55: =Дитячі!$AH$22/1000 -> 0.206 | N55: =Дитячі!$A$22/1000 -> 0.14
B56: 08 | C56: =Юнацькі!$Y$22/1000 -> 0.094 | D56: =(Юнацькі!$Z$22+Юнацькі!$AA$22)/1000 -> 0.191 | E56: =Юнацькі!$AB$22/1000 -> 0.097 | F56: =Юнацькі!$AC$22/1000 -> 0.098 | G56: =Юнацькі!$AE$22/1000 -> 0.1 | H56: =Юнацькі!$AF$22/1000 -> 0.101 | I56: =Юнацькі!$AG$22/1000 -> 0.102 | L56: =Юнацькі!$AH$22/1000 -> 0.103 | N56: =Юнацькі!$A$22/1000 -> 0.07
B57: 09
B61: 4
B63: Продовження форми № 80-а-рвк
B65: Код рядка | C65: Видано (тис. прим. з одним десятковим знаком) | E65: Кількість зареєстрованих користувачів на основі облікової документації (протягом року) | G65: У т.ч. користувачів віком до 18 років | I65: Кількість працівників бібліотеки на кінець року (осіб) | K65: З них:
K66: з повною вищою спеціальною освітою | M66: з базовою вищою спеціальною освітою
B67: Б | C67: 19 | E67: 20 | G67: 21 | I67: 22 | K67: 23 | M67: 24
B68: 01 | C68: =#REF!/1000 ->  | E68: =#REF! ->  | G68: =#REF!+#REF!+#REF! ->  | I68: =#REF! ->  | K68: =#REF! ->  | M68: =#REF! -> 
B69: 02
B70: 03
B71: 04
B72: 05
B73: 06
B74: 07 | C74: =Дитячі!$A$30/1000 -> 0.214 | E74: =Дитячі!$D$15 -> 86 | G74: =Дитячі!$E$15+Дитячі!$F$15+Дитячі!$G$15 -> 270 | I74: =Дитячі!$B$49 -> 288 | K74: =Дитячі!$D$49 -> 292 | M74: =Дитячі!$F$49 -> 296
B75: 08 | C75: =Юнацькі!$A$30/1000 -> 0.107 | E75: =Юнацькі!$D$15 -> 43 | G75: =Юнацькі!$E$15+Юнацькі!$F$15+Юнацькі!$G$15 -> 135 | I75: =Юнацькі!$B$49 -> 144 | K75: =Юнацькі!$D$49 -> 146 | M75: =Юнацькі!$F$49 -> 148
B76: 09
B78: Керівник | I78: Головний бухгалтер
B79: Прізвище, номер телефону виконавця
B80: М.П.
